{"text_format":"1","workbook":"xlsx","n_sheets":2,"sheets":["Programar POA ANUAL","Desayunos"],"not_rendered":{"charts":0,"images":2,"macros":1,"external_links":0,"defined_names":19,"comments":0,"pivot_tables":0},"unopened":[],"bounds":{"document_bytes":16777216,"sheet_cells":100000,"rows_first":2000,"rows_last":500,"rows_between":2000,"halvings":0,"cell_chars":16384,"cell_head_chars":4096},"cells_cut":0,"cells_raw":0,"read":"whole","date_system":"1900"}

{"sheet":"Programar POA ANUAL","index":0,"n_rows":504,"n_cols":26,"rows_kept":504,"cut":false,"hidden":false,"merged":[[275,5,277,5],[278,5,280,5],[281,5,283,5],[285,5,286,5],[287,5,289,5],[290,5,292,5],[293,5,295,5],[296,5,298,5],[299,5,301,5],[302,5,304,5],[305,5,307,5],[308,5,310,5],[311,5,313,5],[314,5,316,5],[320,5,321,5],[322,5,324,5],[326,5,327,5],[184,5,186,5],[189,5,190,5],[191,5,193,5],[194,5,196,5],[197,5,199,5],[200,5,202,5],[203,5,205,5],[206,5,208,5],[209,5,211,5],[213,5,214,5],[215,5,217,5],[220,5,221,5],[223,5,225,5],[226,5,228,5],[229,5,231,5],[232,5,234,5],[235,5,237,5],[108,5,110,5],[112,5,113,5],[114,5,116,5],[121,5,122,5],[123,5,125,5],[133,5,136,5],[138,5,139,5],[140,5,142,5],[143,5,145,5],[146,5,148,5],[149,5,151,5],[152,5,154,5],[155,5,157,5],[158,5,160,5],[161,5,163,5],[164,5,166,5],[170,5,171,5],[131,5,132,5],[15,5,16,5],[17,5,19,5],[21,5,22,5],[23,5,25,5],[31,5,32,5],[33,5,35,5],[36,5,38,5],[39,5,41,5],[42,5,44,5],[45,5,47,5],[48,5,50,5],[51,5,53,5],[55,5,56,5],[57,5,59,5],[62,5,63,5],[65,5,67,5],[68,5,70,5],[15,3,16,3],[15,6,16,6],[15,7,16,7],[3,1,3,2],[3,18,3,19],[8,0,8,2],[8,9,8,11],[8,12,8,14],[8,15,8,17],[17,20,19,20],[17,21,19,21],[17,22,19,22],[21,0,22,0],[21,1,22,1],[21,2,22,2],[21,3,22,3],[21,6,22,6],[21,7,22,7],[21,8,22,8],[15,20,15,21],[15,22,16,22],[17,0,19,0],[17,1,19,1],[17,2,19,2],[17,3,19,3],[17,6,19,6],[15,14,16,14],[15,15,16,15],[15,16,16,16],[15,17,16,17],[15,18,16,18],[15,19,16,19],[15,8,16,8],[15,9,16,9],[15,10,16,10],[15,11,16,11],[15,12,16,12],[15,13,16,13],[15,0,16,0],[15,1,16,1],[15,2,16,2],[31,0,32,0],[31,1,32,1],[31,2,32,2],[31,3,32,3],[31,6,32,6],[31,7,32,7],[21,22,22,22],[23,0,25,0],[23,1,25,1],[23,2,25,2],[23,3,25,3],[23,6,25,6],[23,20,25,20],[23,21,25,21],[23,22,25,22],[21,15,22,15],[21,16,22,16],[21,17,22,17],[21,18,22,18],[21,19,22,19],[21,20,21,21],[21,9,22,9],[21,10,22,10],[21,11,22,11],[21,12,22,12],[21,13,22,13],[21,14,22,14],[33,23,35,23],[36,0,38,0],[36,1,38,1],[36,2,38,2],[36,3,38,3],[36,6,38,6],[36,20,38,20],[36,21,38,21],[36,22,38,22],[36,23,38,23],[31,20,31,21],[31,22,32,22],[33,0,35,0],[33,1,35,1],[33,2,35,2],[33,3,35,3],[33,6,35,6],[33,20,35,20],[33,21,35,21],[33,22,35,22],[31,14,32,14],[31,15,32,15],[31,16,32,16],[31,17,32,17],[31,18,32,18],[31,19,32,19],[31,8,32,8],[31,9,32,9],[31,10,32,10],[31,11,32,11],[31,12,32,12],[31,13,32,13],[42,22,44,22],[42,23,44,23],[45,0,47,0],[45,1,47,1],[45,2,47,2],[45,3,47,3],[45,6,47,6],[45,20,47,20],[45,21,47,21],[45,22,47,22],[39,21,41,21],[39,22,41,22],[39,23,41,23],[42,0,44,0],[42,1,44,1],[42,2,44,2],[42,3,44,3],[42,6,44,6],[42,20,44,20],[42,21,44,21],[39,0,41,0],[39,1,41,1],[39,2,41,2],[39,3,41,3],[39,6,41,6],[39,20,41,20],[51,21,53,21],[51,22,53,22],[51,23,53,23],[55,0,56,0],[55,1,56,1],[55,2,56,2],[55,3,56,3],[55,6,56,6],[55,7,56,7],[55,8,56,8],[51,0,53,0],[51,1,53,1],[51,2,53,2],[51,3,53,3],[51,6,53,6],[51,20,53,20],[45,23,47,23],[48,0,50,0],[48,1,50,1],[48,2,50,2],[48,3,50,3],[48,6,50,6],[48,20,50,20],[48,21,50,21],[48,22,50,22],[48,23,50,23],[55,22,56,22],[57,0,59,0],[57,1,59,1],[57,2,59,2],[57,3,59,3],[57,6,59,6],[57,20,59,20],[57,21,59,21],[57,22,59,22],[55,15,56,15],[55,16,56,16],[55,17,56,17],[55,18,56,18],[55,19,56,19],[55,20,55,21],[55,9,56,9],[55,10,56,10],[55,11,56,11],[55,12,56,12],[55,13,56,13],[55,14,56,14],[64,0,64,1],[65,0,67,0],[65,1,67,1],[65,2,67,2],[65,3,67,3],[65,6,67,6],[62,14,63,14],[62,15,63,15],[65,21,67,21],[65,22,67,22],[62,16,63,16],[62,17,63,17],[62,18,63,18],[62,19,63,19],[62,20,62,21],[62,22,63,22],[62,8,63,8],[62,9,63,9],[62,10,63,10],[62,11,63,11],[62,12,63,12],[62,13,63,13],[62,0,63,0],[62,1,63,1],[62,2,63,2],[62,3,63,3],[62,6,63,6],[62,7,63,7],[68,23,70,23],[71,0,73,0],[71,1,73,1],[71,2,73,2],[71,3,73,3],[71,6,73,6],[71,20,73,20],[71,21,73,21],[71,22,73,22],[71,23,73,23],[65,23,67,23],[68,0,70,0],[68,1,70,1],[68,2,70,2],[68,3,70,3],[68,6,70,6],[68,20,70,20],[68,21,70,21],[68,22,70,22],[65,20,67,20],[71,5,73,5],[71,4,73,4],[78,21,80,21],[78,22,80,22],[78,23,80,23],[81,0,83,0],[81,1,83,1],[81,2,83,2],[81,3,83,3],[81,6,83,6],[81,20,83,20],[81,21,83,21],[74,21,76,21],[74,22,76,22],[74,23,76,23],[77,0,77,1],[78,0,80,0],[78,1,80,1],[78,2,80,2],[78,3,80,3],[78,6,80,6],[78,20,80,20],[74,0,76,0],[74,1,76,1],[74,2,76,2],[74,3,76,3],[74,6,76,6],[74,20,76,20],[74,5,76,5],[78,5,80,5],[81,5,83,5],[74,4,76,4],[78,4,80,4],[84,23,86,23],[88,20,88,21],[88,22,89,22],[88,0,89,0],[88,1,89,1],[88,2,89,2],[88,3,89,3],[88,6,89,6],[88,7,89,7],[88,19,89,19],[81,22,83,22],[81,23,83,23],[84,0,86,0],[84,1,86,1],[84,2,86,2],[84,3,86,3],[84,6,86,6],[84,20,86,20],[84,21,86,21],[84,22,86,22],[84,5,86,5],[88,5,89,5],[81,4,83,4],[84,4,86,4],[90,21,92,21],[90,22,92,22],[90,23,92,23],[93,0,95,0],[93,1,95,1],[93,2,95,2],[93,3,95,3],[93,6,95,6],[93,20,95,20],[90,0,92,0],[90,1,92,1],[90,2,92,2],[90,3,92,3],[90,6,92,6],[90,20,92,20],[88,14,89,14],[88,15,89,15],[88,16,89,16],[88,17,89,17],[88,18,89,18],[88,8,89,8],[88,9,89,9],[88,10,89,10],[88,11,89,11],[88,12,89,12],[88,13,89,13],[90,5,92,5],[93,5,95,5],[88,4,89,4],[90,4,92,4],[105,3,107,3],[105,6,107,6],[96,22,98,22],[96,23,98,23],[99,0,101,0],[99,1,101,1],[99,2,101,2],[99,3,101,3],[99,6,101,6],[99,20,101,20],[99,22,101,22],[99,23,101,23],[93,21,95,21],[93,22,95,22],[93,23,95,23],[96,0,98,0],[96,1,98,1],[96,2,98,2],[96,3,98,3],[96,6,98,6],[96,20,98,20],[96,21,98,21],[96,5,98,5],[99,5,101,5],[102,5,104,5],[105,5,107,5],[93,4,95,4],[96,4,98,4],[99,4,101,4],[102,4,104,4],[105,4,107,4],[108,21,110,21],[108,22,110,22],[108,23,110,23],[112,0,113,0],[112,1,113,1],[112,2,113,2],[112,3,113,3],[112,6,113,6],[112,7,113,7],[108,0,110,0],[108,1,110,1],[108,2,110,2],[108,3,110,3],[108,6,110,6],[108,20,110,20],[105,20,107,20],[99,21,101,21],[105,21,107,21],[105,22,107,22],[105,23,107,23],[102,20,104,20],[102,21,104,21],[102,22,104,22],[102,23,104,23],[102,0,104,0],[102,1,104,1],[102,2,104,2],[102,3,104,3],[102,6,104,6],[105,0,107,0],[105,1,107,1],[105,2,107,2],[112,20,112,21],[112,22,113,22],[114,0,116,0],[114,1,116,1],[114,2,116,2],[114,3,116,3],[114,6,116,6],[114,20,116,20],[114,21,116,21],[114,22,116,22],[112,14,113,14],[112,15,113,15],[112,16,113,16],[112,17,113,17],[112,18,113,18],[112,19,113,19],[112,8,113,8],[112,9,113,9],[112,10,113,10],[112,11,113,11],[112,12,113,12],[112,13,113,13],[123,23,125,23],[121,22,122,22],[123,0,125,0],[123,1,125,1],[123,2,125,2],[123,3,125,3],[123,6,125,6],[123,20,125,20],[123,21,125,21],[123,22,125,22],[121,15,122,15],[121,16,122,16],[121,17,122,17],[121,18,122,18],[121,19,122,19],[121,20,121,21],[121,9,122,9],[121,10,122,10],[121,11,122,11],[121,12,122,12],[121,13,122,13],[121,14,122,14],[121,0,122,0],[121,1,122,1],[121,2,122,2],[121,3,122,3],[121,6,122,6],[121,7,122,7],[121,8,122,8],[175,5,177,5],[172,5,174,5],[178,5,180,5],[181,5,183,5],[133,21,136,21],[133,22,136,22],[131,19,132,19],[131,22,132,22],[131,18,132,18],[131,20,131,21],[131,10,132,10],[133,23,136,23],[131,13,132,13],[133,20,136,20],[131,14,132,14],[131,15,132,15],[131,16,132,16],[131,17,132,17],[143,20,145,20],[143,21,145,21],[143,22,145,22],[143,23,145,23],[140,20,142,20],[140,21,142,21],[140,22,142,22],[140,23,142,23],[149,21,151,21],[149,22,151,22],[149,23,151,23],[155,23,157,23],[158,21,160,21],[158,22,160,22],[133,0,136,0],[133,1,136,1],[133,2,136,2],[133,3,136,3],[133,6,136,6],[138,8,139,8],[131,8,132,8],[131,9,132,9],[138,9,139,9],[131,12,132,12],[131,0,132,0],[131,1,132,1],[131,2,132,2],[131,3,132,3],[131,6,132,6],[131,7,132,7],[131,11,132,11],[138,17,139,17],[138,12,139,12],[138,13,139,13],[138,14,139,14],[138,15,139,15],[138,18,139,18],[138,20,138,21],[138,22,139,22],[140,0,142,0],[140,1,142,1],[140,2,142,2],[140,3,142,3],[140,6,142,6],[138,11,139,11],[138,16,139,16],[138,19,139,19],[138,0,139,0],[138,1,139,1],[138,2,139,2],[138,3,139,3],[138,6,139,6],[138,7,139,7],[138,10,139,10],[146,21,148,21],[146,22,148,22],[146,23,148,23],[149,0,151,0],[149,1,151,1],[149,2,151,2],[149,3,151,3],[149,6,151,6],[149,20,151,20],[146,0,148,0],[146,1,148,1],[146,2,148,2],[146,3,148,3],[146,6,148,6],[146,20,148,20],[143,0,145,0],[143,1,145,1],[143,2,145,2],[143,3,145,3],[143,6,145,6],[158,23,160,23],[161,21,163,21],[161,22,163,22],[161,23,163,23],[158,0,160,0],[158,1,160,1],[158,2,160,2],[158,3,160,3],[158,6,160,6],[158,20,160,20],[152,22,154,22],[152,23,154,23],[155,0,157,0],[155,1,157,1],[155,2,157,2],[155,3,157,3],[155,6,157,6],[155,20,157,20],[155,21,157,21],[155,22,157,22],[152,0,154,0],[152,1,154,1],[152,2,154,2],[152,3,154,3],[152,6,154,6],[152,20,154,20],[152,21,154,21],[170,2,171,2],[170,3,171,3],[170,6,171,6],[170,22,171,22],[161,0,163,0],[161,1,163,1],[161,2,163,2],[170,11,171,11],[170,12,171,12],[164,21,166,21],[164,0,166,0],[164,1,166,1],[164,2,166,2],[164,3,166,3],[164,6,166,6],[164,20,166,20],[161,3,163,3],[161,6,163,6],[161,20,163,20],[170,19,171,19],[170,20,170,21],[170,7,171,7],[170,8,171,8],[170,9,171,9],[170,10,171,10],[170,4,171,4],[175,22,177,22],[170,13,171,13],[170,14,171,14],[170,15,171,15],[170,16,171,16],[170,17,171,17],[170,18,171,18],[164,22,166,22],[164,23,166,23],[175,23,177,23],[178,0,180,0],[178,1,180,1],[178,2,180,2],[178,3,180,3],[178,6,180,6],[178,20,180,20],[178,21,180,21],[178,22,180,22],[178,23,180,23],[172,23,174,23],[175,0,177,0],[175,1,177,1],[175,2,177,2],[175,3,177,3],[175,6,177,6],[175,20,177,20],[175,21,177,21],[172,0,174,0],[172,1,174,1],[172,2,174,2],[170,0,171,0],[170,1,171,1],[172,3,174,3],[172,6,174,6],[172,20,174,20],[184,22,186,22],[184,23,186,23],[189,0,190,0],[189,1,190,1],[189,2,190,2],[189,3,190,3],[189,6,190,6],[189,7,190,7],[189,8,190,8],[189,9,190,9],[181,21,183,21],[181,22,183,22],[181,23,183,23],[184,0,186,0],[184,1,186,1],[184,2,186,2],[184,3,186,3],[184,6,186,6],[184,20,186,20],[184,21,186,21],[181,0,183,0],[181,1,183,1],[181,2,183,2],[181,3,183,3],[181,6,183,6],[181,20,183,20],[189,23,190,23],[172,21,174,21],[172,22,174,22],[191,21,193,21],[191,22,193,22],[191,23,193,23],[189,16,190,16],[191,0,193,0],[191,1,193,1],[191,2,193,2],[191,3,193,3],[191,6,193,6],[191,20,193,20],[189,17,190,17],[189,18,190,18],[189,19,190,19],[189,20,189,21],[189,22,190,22],[189,10,190,10],[189,11,190,11],[189,12,190,12],[189,13,190,13],[189,14,190,14],[189,15,190,15],[197,21,199,21],[197,22,199,22],[197,23,199,23],[200,0,202,0],[200,1,202,1],[200,2,202,2],[200,3,202,3],[200,6,202,6],[194,21,196,21],[194,22,196,22],[194,23,196,23],[197,0,199,0],[197,1,199,1],[197,2,199,2],[197,3,199,3],[197,6,199,6],[197,20,199,20],[194,0,196,0],[194,1,196,1],[194,2,196,2],[194,3,196,3],[194,6,196,6],[194,20,196,20],[203,22,205,22],[203,23,205,23],[206,0,208,0],[206,1,208,1],[206,2,208,2],[206,3,208,3],[206,6,208,6],[203,0,205,0],[203,1,205,1],[203,2,205,2],[203,3,205,3],[203,6,205,6],[203,20,205,20],[200,20,202,20],[200,21,202,21],[203,21,205,21],[200,22,202,22],[200,23,202,23],[213,15,214,15],[213,19,214,19],[213,20,213,21],[209,0,211,0],[209,1,211,1],[209,2,211,2],[209,3,211,3],[209,6,211,6],[213,0,214,0],[213,1,214,1],[209,20,211,20],[206,20,208,20],[206,21,208,21],[206,22,208,22],[206,23,208,23],[209,21,211,21],[209,22,211,22],[209,23,211,23],[215,22,217,22],[215,23,217,23],[220,0,221,0],[220,1,221,1],[220,2,221,2],[220,3,221,3],[220,6,221,6],[220,7,221,7],[220,8,221,8],[213,23,214,23],[215,0,217,0],[215,1,217,1],[215,2,217,2],[215,3,217,3],[215,6,217,6],[215,20,217,20],[213,16,214,16],[213,17,214,17],[213,18,214,18],[213,22,214,22],[213,2,214,2],[213,3,214,3],[213,6,214,6],[213,7,214,7],[213,8,214,8],[213,9,214,9],[213,10,214,10],[215,21,217,21],[213,11,214,11],[213,12,214,12],[213,13,214,13],[213,14,214,14],[223,21,225,21],[223,22,225,22],[223,23,225,23],[226,0,228,0],[226,1,228,1],[226,2,228,2],[226,3,228,3],[226,6,228,6],[226,20,228,20],[226,21,228,21],[220,22,221,22],[220,23,221,23],[222,0,222,2],[223,0,225,0],[223,1,225,1],[223,2,225,2],[223,3,225,3],[223,6,225,6],[223,20,225,20],[220,15,221,15],[220,16,221,16],[220,17,221,17],[220,18,221,18],[220,19,221,19],[220,20,220,21],[220,9,221,9],[220,10,221,10],[220,11,221,11],[220,12,221,12],[220,13,221,13],[220,14,221,14],[229,23,231,23],[232,0,234,0],[232,1,234,1],[232,2,234,2],[232,3,234,3],[232,6,234,6],[232,20,234,20],[232,21,234,21],[232,22,234,22],[232,23,234,23],[226,22,228,22],[226,23,228,23],[229,0,231,0],[229,1,231,1],[229,2,231,2],[229,3,231,3],[229,6,231,6],[229,20,231,20],[229,21,231,21],[229,22,231,22],[226,4,228,4],[229,4,231,4],[232,4,234,4],[238,22,240,22],[238,23,240,23],[241,0,243,0],[241,1,243,1],[241,2,243,2],[241,3,243,3],[241,6,243,6],[241,20,243,20],[241,21,243,21],[241,22,243,22],[235,21,237,21],[235,22,237,22],[235,23,237,23],[238,0,240,0],[238,1,240,1],[238,2,240,2],[238,3,240,3],[238,6,240,6],[238,20,240,20],[238,21,240,21],[235,0,237,0],[235,1,237,1],[235,2,237,2],[235,3,237,3],[235,6,237,6],[235,20,237,20],[238,5,240,5],[241,5,243,5],[235,4,237,4],[238,4,240,4],[247,21,249,21],[247,22,249,22],[247,23,249,23],[250,0,252,0],[250,1,252,1],[250,2,252,2],[250,3,252,3],[250,6,252,6],[250,20,252,20],[250,21,252,21],[247,0,249,0],[247,1,249,1],[247,2,249,2],[247,3,249,3],[247,6,249,6],[247,20,249,20],[241,23,243,23],[244,0,246,0],[244,1,246,1],[244,2,246,2],[244,3,246,3],[244,6,246,6],[244,20,246,20],[244,21,246,21],[244,22,246,22],[244,23,246,23],[244,5,246,5],[247,5,249,5],[250,5,252,5],[241,4,243,4],[244,4,246,4],[247,4,249,4],[253,23,255,23],[256,0,258,0],[256,1,258,1],[256,2,258,2],[256,3,258,3],[256,6,258,6],[256,20,258,20],[256,21,258,21],[256,22,258,22],[256,23,258,23],[250,22,252,22],[250,23,252,23],[253,0,255,0],[253,1,255,1],[253,2,255,2],[253,3,255,3],[253,6,255,6],[253,20,255,20],[253,21,255,21],[253,22,255,22],[253,5,255,5],[256,5,258,5],[250,4,252,4],[253,4,255,4],[256,4,258,4],[263,21,265,21],[263,22,265,22],[263,23,265,23],[266,0,268,0],[266,1,268,1],[266,2,268,2],[266,3,268,3],[266,6,268,6],[266,20,268,20],[266,21,268,21],[259,21,261,21],[259,22,261,22],[259,23,261,23],[262,0,262,2],[263,0,265,0],[263,1,265,1],[263,2,265,2],[263,3,265,3],[263,6,265,6],[263,20,265,20],[259,0,261,0],[259,1,261,1],[259,2,261,2],[259,3,261,3],[259,6,261,6],[259,20,261,20],[259,5,261,5],[263,5,265,5],[266,5,268,5],[259,4,261,4],[263,4,265,4],[269,23,271,23],[272,0,274,0],[272,1,274,1],[272,2,274,2],[272,3,274,3],[272,6,274,6],[272,21,274,21],[272,22,274,22],[272,23,274,23],[272,20,274,20],[266,22,268,22],[266,23,268,23],[269,0,271,0],[269,1,271,1],[269,2,271,2],[269,3,271,3]],"merged_total":2129,"flags":["merged_cut"]}
["NES"]
["SISTEMA PARA EL DESARROLLO INTEGRAL DE LA FAMILIA DEL ESTADO DE MÉXICO",null,null,null,null,null,null,null,null,null,null,null,null,null,null,null,null,null,null,null,null,null,null,2]
["PROGRAMA OPERATIVO ANUAL MUNICIPAL DE SALUD, SEGURIDAD Y ASISTENCIA SOCIAL (POA) 2021",null,null,null,null,null,null,null,null,null,null,null,null,null,null,null,null,null,null,null,null,null,null,126]
["SMDIF:","TEMOAYA"]
["REGIÓN","VII"]
["AÑO:",2021]
["MES:"]
[]
["ESTRUCTURA PROGRAMATICA 2021"]
["Fin:","02 Desarrollo Social"]
["Función:","0202 Vivienda y servicios a la comunidad"]
["Subfunción:","020202 Desarrollo Comunitario"]
["Programa:","02020201  Desarrollo comunitario.- Incluye proyectos cuyas acciones de coordinación para la concurrencia de los recursos en los programas de desarrollo social se orientan a la mejora de los distintos ámbitos de los municipios y los grupos sociales que en ellos habitan, en especial a los de mayor vulnerabilidad, y que tengan como propósito asegurar la reducción de la pobreza.",null,null,null,null,null,null,null,null,null,null,null,null,null,null,null,null,null,null,null,null,null,"DIRECCIONES"]
["Subprograma:","0202020101  Impulso al desarrollo de las comunidades"]
["Proyecto:","020202010101 Promoción a la participación comunitaria.- Incluye estrategias de desarrollo comunitario que impulsa procesos de organización y participación comunitaria para mejorar las condiciones de vida de los grupos de desarrollo ubicados en localidades de alta y muy alta marginación."]
["CLAVE DIFEM","UNIDAD ADMVA. RESPONSABLE (MPAL.)"," METAS","UNIDAD DE MEDIDA","META ANUAL 2021","META ANUAL 2020","META ANUAL 2019","TIPOLOGÍA","ENE","FEB","MAR","ABR","MAY","JUN","JUL","AGO","SEP","OCT","NOV","DIC","Avance Acumulado",null,"OBSERVACIONES"]
[null,null,null,null,null,null,null,null,null,null,null,null,null,null,null,null,null,null,null,null,"Absoluto","Relativo (%)"]
[null,null,null,null,{"$f":"SUM(I18:T18)","v":0},0,0,"PROGRAMADO",null,null,null,null,null,null,null,null,null,null,null,null,{"$f":"SUM(I19:T19)","v":0},{"$f":"IF(ISERROR(U18/E18),0,U18/E18)","v":0},{"$f":"Y18","v":" "},null,{"$f":"IF(E18<F18,\"JUSTIFICAR BAJA\",\" \")","v":" "}]
[null,null,null,null,null,null,null,"REALIZADO"]
[null,null,null,null,null,null,null,"POBLACIÓN BENEFICIADA"]
["Proyecto:","020202010102 Apoyo a la comunidad.- Incluye las actividades que permiten otorgar apoyos, la adquisición y suministro de bienes materiales y de servicios, la realización de acciones y obras sociales promovidas en las comunidades a través de los legisladores, sus grupos parlamentarios o las regidurías."]
["CLAVE DIFEM","UNIDAD ADMVA. RESPONSABLE (MPAL.)"," METAS","UNIDAD DE MEDIDA","META ANUAL 2021","META ANUAL 2020","META ANUAL 2019","TIPOLOGÍA","ENE","FEB","MAR","ABR","MAY","JUN","JUL","AGO","SEP","OCT","NOV","DIC","Avance Acumulado",null,"OBSERVACIONES"]
[null,null,null,null,null,null,null,null,null,null,null,null,null,null,null,null,null,null,null,null,"Absoluto","Relativo (%)"]
[null,null,null,null,{"$f":"SUM(I24:T24)","v":0},0,0,"PROGRAMADO",null,null,null,null,null,null,null,null,null,null,null,null,{"$f":"SUM(I25:T25)","v":0},{"$f":"IF(ISERROR(U24/E24),0,U24/E24)","v":0},{"$f":"Y24","v":" "},null,{"$f":"IF(E24<F24,\"JUSTIFICAR BAJA\",\" \")","v":" "}]
[null,null,null,null,null,null,null,"REALIZADO"]
[null,null,null,null,null,null,null,"POBLACIÓN BENEFICIADA"]
["Función:","0203 Salud"]
["Subfunción:","020301  Prestación de servicios de salud a la comunidad.- Incluye las campañas para la promoción y prevención de salud y el fomento de la salud pública, tales como la vigilancia epidemiológica, la salud ambiental, el control de vectores y la regulación sanitaria, así como la prestación de servicios de salud por personal no especializado."]
["Programa:","02030101  Prevención médica para la comunidad.- Incluye acciones de promoción, prevención y fomento de la salud pública para contribuir a la disminución de enfermedades y mantener un buen estado de salud de la población municipal."]
["Subprograma:","0203010101  Prevención médica iterativa"]
["Proyecto:","020301010101 Medicina preventiva.- Comprende las acciones enfocadas a la aplicación de biológicos, para disminuir las enfermedades prevenibles por vacunación y preservar el estado de salud de la población"]
["CLAVE DIFEM","UNIDAD ADMVA. RESPONSABLE (MPAL.)"," METAS","UNIDAD DE MEDIDA","META ANUAL 2021","META ANUAL 2020","META ANUAL 2019","TIPOLOGÍA","ENE","FEB","MAR","ABR","MAY","JUN","JUL","AGO","SEP","OCT","NOV","DIC","Avance Acumulado",null,"OBSERVACIONES"]
[null,null,null,null,null,null,null,null,null,null,null,null,null,null,null,null,null,null,null,null,"Absoluto","Relativo (%)"]
[1,null,"APLICAR DOSIS DE BIOLÓGICO DEL PROGRAMA DE VACUNACIÓN UNIVERSAL A PERSONAS EN RIESGO","DOSIS\n(SvMA)",{"$f":"SUM(I34:T34)","v":0},0,0,"PROGRAMADO",null,null,null,null,null,null,null,null,null,null,null,null,{"$f":"SUM(I35:T35)","v":0},{"$f":"IF(ISERROR(U34/E34),0,U34/E34)","v":0},{"$f":"Y34","v":" "},"DPBF",{"$f":"IF(E34<F34,\"JUSTIFICAR BAJA\",\" \")","v":" "}]
[null,null,null,null,null,null,null,"REALIZADO"]
[null,null,null,null,null,null,null,"POBLACIÓN BENEFICIADA"]
[2,null,"CAPACITAR A MADRES DE FAMILIA EN LA ATENCIÓN DE ENFERMEDADES DIARRÉICAS AGUDAS","PLÁTICA\n(SvMA)",{"$f":"SUM(I37:T37)","v":0},36,36,"PROGRAMADO",null,null,null,null,null,null,null,null,null,null,null,null,{"$f":"SUM(I38:T38)","v":0},{"$f":"IF(ISERROR(U37/E37),0,U37/E37)","v":0},{"$f":"Y37","v":"JUSTIFICAR BAJA"},"DPBF",{"$f":"IF(E37<F37,\"JUSTIFICAR BAJA\",\" \")","v":"JUSTIFICAR BAJA"}]
[null,null,null,null,null,null,null,"REALIZADO"]
[null,null,null,null,null,null,null,"POBLACIÓN BENEFICIADA"]
[3,null,"CAPACITAR A MADRES DE FAMILIA EN LA ATENCIÓN DE INFECCIONES RESPIRATORIAS AGUDAS","PLÁTICA\n(SvMA)",{"$f":"SUM(I40:T40)","v":0},36,36,"PROGRAMADO",null,null,null,null,null,null,null,null,null,null,null,null,{"$f":"SUM(I41:T41)","v":0},{"$f":"IF(ISERROR(U40/E40),0,U40/E40)","v":0},{"$f":"Y40","v":"JUSTIFICAR BAJA"},"DPBF",{"$f":"IF(E40<F40,\"JUSTIFICAR BAJA\",\" \")","v":"JUSTIFICAR BAJA"}]
[null,null,null,null,null,null,null,"REALIZADO"]
[null,null,null,null,null,null,null,"POBLACIÓN BENEFICIADA"]
[4,null,"IMPARTIR PLÁTICAS DE VACUNACIÓN A PADRES DE FAMILIA","PLÁTICA\n(SvMA)",{"$f":"SUM(I43:T43)","v":0},36,36,"PROGRAMADO",null,null,null,null,null,null,null,null,null,null,null,null,{"$f":"SUM(I44:T44)","v":0},{"$f":"IF(ISERROR(U43/E43),0,U43/E43)","v":0},{"$f":"Y43","v":"JUSTIFICAR BAJA"},"DPBF",{"$f":"IF(E43<F43,\"JUSTIFICAR BAJA\",\" \")","v":"JUSTIFICAR BAJA"}]
[null,null,null,null,null,null,null,"REALIZADO"]
[null,null,null,null,null,null,null,"POBLACIÓN BENEFICIADA"]
[5,null,"EXPEDIR CERTIFICADOS MÉDICOS","CERTIFICADO\n(SvMA)",{"$f":"SUM(I46:T46)","v":0},1500,1500,"PROGRAMADO",null,null,null,null,null,null,null,null,null,null,null,null,{"$f":"SUM(I47:T47)","v":0},{"$f":"IF(ISERROR(U46/E46),0,U46/E46)","v":0},{"$f":"Y46","v":"JUSTIFICAR BAJA"},"DPBF",{"$f":"IF(E46<F46,\"JUSTIFICAR BAJA\",\" \")","v":"JUSTIFICAR BAJA"}]
[null,null,null,null,null,null,null,"REALIZADO"]
[null,null,null,null,null,null,null,"POBLACIÓN BENEFICIADA"]
[6,null,"REALIZAR DETECCIONES OPORTUNAS DE CÁNCER MAMARIO (EXPLORACIONES)","EXAMEN\n(SvMA)",{"$f":"SUM(I49:T49)","v":0},50,50,"PROGRAMADO",null,null,null,null,null,null,null,null,null,null,null,null,{"$f":"SUM(I50:T50)","v":0},{"$f":"IF(ISERROR(U49/E49),0,U49/E49)","v":0},{"$f":"Y49","v":"JUSTIFICAR BAJA"},"DPBF",{"$f":"IF(E49<F49,\"JUSTIFICAR BAJA\",\" \")","v":"JUSTIFICAR BAJA"}]
[null,null,null,null,null,null,null,"REALIZADO"]
[null,null,null,null,null,null,null,"POBLACIÓN BENEFICIADA"]
[7,null,"REALIZAR EXÁMENES PARA DETECCIÓN DE CÁNCER CERVICOUTERINO (CITOLOGÍAS)","EXAMEN\n(SvMA)",{"$f":"SUM(I52:T52)","v":0},50,50,"PROGRAMADO",null,null,null,null,null,null,null,null,null,null,null,null,{"$f":"SUM(I53:T53)","v":0},{"$f":"IF(ISERROR(U52/E52),0,U52/E52)","v":0},{"$f":"Y52","v":"JUSTIFICAR BAJA"},"DPBF",{"$f":"IF(E52<F52,\"JUSTIFICAR BAJA\",\" \")","v":"JUSTIFICAR BAJA"}]
[null,null,null,null,null,null,null,"REALIZADO"]
[null,null,null,null,null,null,null,"POBLACIÓN BENEFICIADA"]
["Proyecto:","020301010102 Vigilancia y blindaje epidemiológico.- Incluye las acciones de apoyo al monitoreo y generación de información que permiten detectar y afrontar situaciones epidemiológicas críticas y los efectos en la salud provocados por desastres naturales que pongan en riesgo a la población; fomentando la coordinación, de acciones que permitan mejorar la toma de decisiones para contener adecuadamente una posible epidemia, endemia o cualquier otra amenaza local y global contra la salud."]
["CLAVE DIFEM","UNIDAD ADMVA. RESPONSABLE (MPAL.)"," METAS","UNIDAD DE MEDIDA","META ANUAL 2021","META ANUAL 2020","META ANUAL 2019","TIPOLOGÍA","ENE","FEB","MAR","ABR","MAY","JUN","JUL","AGO","SEP","OCT","NOV","DIC","Avance Acumulado",null,"OBSERVACIONES"]
[null,null,null,null,null,null,null,null,null,null,null,null,null,null,null,null,null,null,null,null,"Absoluto","Relativo (%)"]
[null,null,null,null,{"$f":"SUM(I58:T58)","v":0},0,0,"PROGRAMADO",null,null,null,null,null,null,null,null,null,null,null,null,{"$f":"SUM(I59:T59)","v":0},{"$f":"IF(ISERROR(U58/E58),0,U58/E58)","v":0},{"$f":"Y58","v":" "},null,{"$f":"IF(E58<F58,\"JUSTIFICAR BAJA\",\" \")","v":" "}]
[null,null,null,null,null,null,null,"REALIZADO"]
[null,null,null,null,null,null,null,"POBLACIÓN BENEFICIADA"]
["Subprograma:","0203010102 Promoción cultural de la salud"]
["Proyecto:","020301010201 Promoción de la salud.- Incluye acciones enfocadas a mantener informada a la población sobre los temas relacionados con el autocuidado de la salud que contribuyan a la disminución de enfermedades"]
["CLAVE DIFEM","UNIDAD ADMVA. RESPONSABLE (MPAL.)"," METAS","UNIDAD DE MEDIDA","META ANUAL 2021","META ANUAL 2020","META ANUAL 2019","TIPOLOGÍA","ENE","FEB","MAR","ABR","MAY","JUN","JUL","AGO","SEP","OCT","NOV","DIC","Avance Acumulado",null,"OBSERVACIONES"]
[null,null,null,null,null,null,null,null,null,null,null,null,null,null,null,null,null,null,null,null,"Absoluto","Relativo (%)"]
["ODONTOLOGÍA FIJA"]
[1,"Dr. Alonso ","IMPARTIR PLÁTICAS DE ODONTOLOGÍA PREVENTIVA, TANTO A PÚBLICO CAUTIVO (ESCUELAS Y PADRES DE FAMILIA), COMO A POBLACIÓN ABIERTA","PLÁTICA\n(SvMA)",{"$f":"SUM(I66:T66)","v":0},24,24,"PROGRAMADO",null,null,null,null,null,null,null,null,null,null,null,null,{"$f":"SUM(I67:T67)","v":0},{"$f":"IF(ISERROR(U66/E66),0,U66/E66)","v":0},{"$f":"Y66","v":"JUSTIFICAR BAJA"},"DPBF",{"$f":"IF(E66<F66,\"JUSTIFICAR BAJA\",\" \")","v":"JUSTIFICAR BAJA"}]
[null,null,null,null,null,null,null,"REALIZADO"]
[null,null,null,null,null,null,null,"POBLACIÓN BENEFICIADA"]
[2,"Dr. Alonso ","ENJUAGATORIOS DE FLORURO A NIÑAS, NIÑOS Y ADOLESCENTES EN ESCUELAS PRIMARIAS DEL MUNICIPIO DE ACUERDO AL PROGRAMA EDUCATIVO PREVENTIVO.","FLvORIZACION       ( SvMA)",{"$f":"SUM(I69:T69)","v":0},4500,2400,"PROGRAMADO",null,null,null,null,null,null,null,null,null,null,null,null,{"$f":"SUM(I70:T70)","v":0},{"$f":"IF(ISERROR(U69/E69),0,U69/E69)","v":0},{"$f":"Y69","v":"JUSTIFICAR BAJA"},"DPBF",{"$f":"IF(E69<F69,\"JUSTIFICAR BAJA\",\" \")","v":"JUSTIFICAR BAJA"}]
[null,null,null,null,null,null,null,"REALIZADO"]
[null,null,null,null,null,null,null,"POBLACIÓN BENEFICIADA"]
[3,"Dr. Alonso ","OTORGAR CONSULTAS ODONTOLÓGICAS A LA POBLACIÓN DE ESCASOS RECURSOS DEL MUNICIPIO","CONSvLTA\n(SvMA)",{"$f":"SUM(I72:T72)","v":0},1200,1200,"PROGRAMADO",null,null,null,null,null,null,null,null,null,null,null,null,{"$f":"SUM(I73:T73)","v":0},{"$f":"IF(ISERROR(U72/E72),0,U72/E72)","v":0},{"$f":"Y72","v":"JUSTIFICAR BAJA"},"DPBF",{"$f":"IF(E72<F72,\"JUSTIFICAR BAJA\",\" \")","v":"JUSTIFICAR BAJA"}]
[null,null,null,null,null,null,null,"REALIZADO"]
[null,null,null,null,null,null,null,"POBLACIÓN BENEFICIADA"]
[4,"Dr. Alonso ","OTORGAR TRATAMIENTOS EN CONSULTORIO FIJO A POBLACION ABIERTA AL MUNICIPIO.","TRATAMIENTO\n(SvMA)",{"$f":"SUM(I75:T75)","v":0},1400,1400,"PROGRAMADO",null,null,null,null,null,null,null,null,null,null,null,null,{"$f":"SUM(I76:T76)","v":0},{"$f":"IF(ISERROR(U75/E75),0,U75/E75)","v":0},{"$f":"Y75","v":"JUSTIFICAR BAJA"},"DPBF",{"$f":"IF(E75<F75,\"JUSTIFICAR BAJA\",\" \")","v":"JUSTIFICAR BAJA"}]
[null,null,null,null,null,null,null,"REALIZADO"]
[null,null,null,null,null,null,null,"POBLACIÓN BENEFICIADA"]
["ODONTOLOGÍA MÓVIL"]
[5,"Dr. Alonso EN COORDINACION CON SAMUEL, CHELY Y DRA DAINY ","OTORGAR CONSULTAS ODONTOLÓGICAS A LA POBLACIÓN DE ESCASOS RECURSOS DEL MUNICIPIO EN UNIDAD MÓVIL OTORGADA EN COMODATO POR DIFEM O PROPIA","CONSvLTA\n(SvMA)",{"$f":"SUM(I79:T79)","v":0},126,6,"PROGRAMADO",null,null,null,null,null,null,null,null,null,null,null,null,{"$f":"SUM(I80:T80)","v":0},{"$f":"IF(ISERROR(U79/E79),0,U79/E79)","v":0},{"$f":"Y79","v":"JUSTIFICAR BAJA"},"DPBF",{"$f":"IF(E79<F79,\"JUSTIFICAR BAJA\",\" \")","v":"JUSTIFICAR BAJA"}]
[null,null,null,null,null,null,null,"REALIZADO"]
[null,null,null,null,null,null,null,"POBLACIÓN BENEFICIADA"]
[6,"Dr. Alonso EN COORDINACION CON SAMUEL, CHELY Y DRA DAINY ","PROPORCIONAR ORIENTACIONES INDIVIDUALES A LOS PACIENTES ODONTOLÓGICOS","ASESORÍA\n(SvMA)",{"$f":"SUM(I82:T82)","v":0},125,6,"PROGRAMADO",null,null,null,null,null,null,null,null,null,null,null,null,{"$f":"SUM(I83:T83)","v":0},{"$f":"IF(ISERROR(U82/E82),0,U82/E82)","v":0},{"$f":"Y82","v":"JUSTIFICAR BAJA"},"DPBF",{"$f":"IF(E82<F82,\"JUSTIFICAR BAJA\",\" \")","v":"JUSTIFICAR BAJA"}]
[null,null,null,null,null,null,null,"REALIZADO"]
[null,null,null,null,null,null,null,"POBLACIÓN BENEFICIADA"]
[7,"Dr. Alonso EN COORDINACION CON SAMUEL, CHELY Y DRA DAINY ","OTORGAR TRATAMIENTOS EN UNIDAD MÓVIL (OTORGADA EN COMODATO POR DIFEM O PROPIA) A LA POBLACIÓN DE ESCASOS RECURSOS DEL MUNICIPIO","TRATAMIENTO\n(SvMA)",{"$f":"SUM(I85:T85)","v":0},2630,6,"PROGRAMADO",null,null,null,null,null,null,null,null,null,null,null,null,{"$f":"SUM(I86:T86)","v":0},{"$f":"IF(ISERROR(U85/E85),0,U85/E85)","v":0},{"$f":"Y85","v":"JUSTIFICAR BAJA"},"DPBF",{"$f":"IF(E85<F85,\"JUSTIFICAR BAJA\",\" \")","v":"JUSTIFICAR BAJA"}]
[null,null,null,null,null,null,null,"REALIZADO"]
[null,null,null,null,null,null,null,"POBLACIÓN BENEFICIADA"]
["Proyecto:","020301010202  Prevención de las adicciones.- Engloba aquellas acciones de prevención a través de la promoción y la enseñanza de herramientas que permitan crear conciencia en la población sobre la importancia de evitar el uso y consumo de sustancias psicotrópicas"]
["CLAVE DIFEM","UNIDAD ADMVA. RESPONSABLE (MPAL.)"," METAS","UNIDAD DE MEDIDA","META ANUAL 2021","META ANUAL 2020","META ANUAL 2019","TIPOLOGÍA","ENE","FEBRERO","MAR","ABR","MAY","JUN","JUL","AGO","SEP","OCT","NOV","DIC","Avance Acumulado",null,"OBSERVACIONES"]
[null,null,null,null,null,null,null,null,null,null,null,null,null,null,null,null,null,null,null,null,"Absoluto","Relativo (%)"]
[1,"Psicologo Isac","PREVENIR LAS ADICCIONES (TABAQUISMO, ALCOHOLISMO Y FARMACODEPENDENCIA) EN ESCUELAS Y ENTRE LA POBLACIÓN EN GENERAL, A TRAVÉS DE PLÁTICAS.","PLÁTICAS\n(SvMA)",{"$f":"SUM(I91:T91)","v":0},154,154,"PROGRAMADO",null,null,null,null,null,null,null,null,null,null,null,null,{"$f":"SUM(I92:T92)","v":0},{"$f":"IF(ISERROR(U91/E91),0,U91/E91)","v":0},{"$f":"Y91","v":"JUSTIFICAR BAJA"},"DPBF",{"$f":"IF(E91<F91,\"JUSTIFICAR BAJA\",\" \")","v":"JUSTIFICAR BAJA"}]
[null,null,null,null,null,null,null,"REALIZADO"]
[null,null,null,null,null,null,null,"POBLACIÓN BENEFICIADA"]
[2,"Psicologo Isac","OTORGAR ORIENTACIONES INDIVIDUALES, DE PAREJA, FAMILIARES O GRUPALES, PARA PREVENIR LAS ADICCIONES ","ASESORÍA\n(SvMA)",{"$f":"SUM(I94:T94)","v":0},30,30,"PROGRAMADO",null,null,null,null,null,null,null,null,null,null,null,null,{"$f":"SUM(I95:T95)","v":0},{"$f":"IF(ISERROR(U94/E94),0,U94/E94)","v":0},{"$f":"Y94","v":"JUSTIFICAR BAJA"},"DPBF",{"$f":"IF(E94<F94,\"JUSTIFICAR BAJA\",\" \")","v":"JUSTIFICAR BAJA"}]
[null,null,null,null,null,null,null,"REALIZADO"]
[null,null,null,null,null,null,null,"POBLACIÓN BENEFICIADA"]
[3,"Psicologo Isac","IMPARTIR TALLERES PREVENTIVOS DE LAS ADICCIONES A ESCUELAS Y POBLACIÓN ABIERTA","TALLER\n(SvMA)",{"$f":"SUM(I97:T97)","v":0},4,4,"PROGRAMADO",null,null,null,null,null,null,null,null,null,null,null,null,{"$f":"SUM(I98:T98)","v":0},{"$f":"IF(ISERROR(U97/E97),0,U97/E97)","v":0},{"$f":"Y97","v":"JUSTIFICAR BAJA"},"DPBF",{"$f":"IF(E97<F97,\"JUSTIFICAR BAJA\",\" \")","v":"JUSTIFICAR BAJA"}]
[null,null,null,null,null,null,null,"REALIZADO"]
[null,null,null,null,null,null,null,"POBLACIÓN BENEFICIADA"]
[4,"Psicologo Isac","ATENDER A PERSONAS CON ALGUNA ADICCIÓN O TRASTORNO"," CONSvLTA\n(SvMA)",{"$f":"SUM(I100:T100)","v":0},0,0,"PROGRAMADO",null,null,null,null,null,null,null,null,null,null,null,null,{"$f":"SUM(I101:T101)","v":0},{"$f":"IF(ISERROR(U100/E100),0,U100/E100)","v":0},{"$f":"Y100","v":" "},"DPBF",{"$f":"IF(E100<F100,\"JUSTIFICAR BAJA\",\" \")","v":" "}]
[null,null,null,null,null,null,null,"REALIZADO"]
[null,null,null,null,null,null,null,"POBLACIÓN BENEFICIADA"]
[5,"Psicologo Isac","REALIZAR EVENTOS ESPECIALES EN TORNO A LA PREVENCIÓN DE LAS ADICCIONES","JORNADA\n(SvMA)",{"$f":"SUM(I103:T103)","v":0},11,11,"PROGRAMADO",null,null,null,null,null,null,null,null,null,null,null,null,{"$f":"SUM(I104:T104)","v":0},{"$f":"IF(ISERROR(U103/E103),0,U103/E103)","v":0},{"$f":"Y103","v":"JUSTIFICAR BAJA"},"DPBF",{"$f":"IF(E103<F103,\"JUSTIFICAR BAJA\",\" \")","v":"JUSTIFICAR BAJA"}]
[null,null,null,null,null,null,null,"REALIZADO"]
[null,null,null,null,null,null,null,"POBLACIÓN BENEFICIADA"]
[6,"Psicologo Isac","ELABORAR Y DISTRIBUIR MATERIAL IMPRESO PARA LA DIFUSIÓN DE LA PREVENCIÓN DE ADICCIONES","TRÍPTICOS/DÍPTICOS\n(SvMA)",{"$f":"SUM(I106:T106)","v":0},12,12,"PROGRAMADO",null,null,null,null,null,null,null,null,null,null,null,null,{"$f":"SUM(I107:T107)","v":0},{"$f":"IF(ISERROR(U106/E106),0,U106/E106)","v":0},{"$f":"Y106","v":"JUSTIFICAR BAJA"},"DPBF",{"$f":"IF(E106<F106,\"JUSTIFICAR BAJA\",\" \")","v":"JUSTIFICAR BAJA"}]
[null,null,null,null,null,null,null,"REALIZADO"]
[null,null,null,null,null,null,null,"POBLACIÓN BENEFICIADA"]
[7,"Psicologo Isac","REALIZAR TALLERES PSICOEDUCATIVOS Y CURSOS ENFOCADOS AL PROGRAMA NUEVA VIDA","TALLER\n(SvMA)",{"$f":"SUM(I109:T109)","v":0},1,1,"PROGRAMADO",null,null,null,null,null,null,null,null,null,null,null,null,{"$f":"SUM(I110:T110)","v":0},{"$f":"IF(ISERROR(U109/E109),0,U109/E109)","v":0},{"$f":"Y109","v":"JUSTIFICAR BAJA"},"DPBF",{"$f":"IF(E109<F109,\"JUSTIFICAR BAJA\",\" \")","v":"JUSTIFICAR BAJA"}]
[null,null,null,null,null,null,null,"REALIZADO"]
[null,null,null,null,null,null,null,"POBLACIÓN BENEFICIADA"]
["Proyecto:","020301010203 Entornos y comunidades saludables.-Incorpora las acciones de apoyo para combatir los problemas que amenazan la salud integral de las personas, familias y comunidades, al fortalecer las conductas saludables que benefician a su población, todo esto a través de la promoción de políticas públicas que fomenten la creación de entornos favorables a la salud y refuercen el poder de las comunidades sobre los determinantes de su salud."]
["CLAVE DIFEM","UNIDAD ADMVA. RESPONSABLE (MPAL.)"," METAS","UNIDAD DE MEDIDA","META ANUAL 2021","META ANUAL 2020","META ANUAL 2019","TIPOLOGÍA","ENE","FEB","MAR","ABR","MAY","JUN","JUL","AGO","SEP","OCT","NOV","DIC","Avance Acumulado",null,"OBSERVACIONES"]
[null,null,null,null,null,null,null,null,null,null,null,null,null,null,null,null,null,null,null,null,"Absoluto","Relativo (%)"]
[null,null,null,null,{"$f":"SUM(I115:T115)","v":0},0,0,"PROGRAMADO",null,null,null,null,null,null,null,null,null,null,null,null,{"$f":"SUM(I116:T116)","v":0},{"$f":"IF(ISERROR(U115/E115),0,U115/E115)","v":0},{"$f":"Y115","v":" "},null,{"$f":"IF(E115<F115,\"JUSTIFICAR BAJA\",\" \")","v":" "}]
[null,null,null,null,null,null,null,"REALIZADO"]
[null,null,null,null,null,null,null,"POBLACIÓN BENEFICIADA"]
["Subfunción:","020302 Prestación de servicios de salud a la persona.-Este incluye la atención preventiva, diagnóstico, tratamiento y rehabilitación, así como la atención de urgencias en todos los niveles a cargo de personal especializado"]
["Programa:","02030201  Atención médica.- Agrupa las líneas de acción dirigidas a proporcionar atención médica a la población mexiquense, con efectividad y calidad de los servicios de salud que otorgan las instituciones del sector público, así como lograr la cobertura universal de los servicios de salud, para reducir los índices de morbilidad y mortalidad aumentando la esperanza de vida de la población de la entidad."]
["Subprograma:","0203020101 Fortalecimiento del diagnóstico y la atención médica"]
["Proyecto:","020302010111  Apoyo municipal a la prestación de servicios de salud para las personas.- Engloba todas las acciones que resulten en apoyo municipal al desarrollo en materia de infraestructura, equipamiento, apoyo directo a pacientes, atención médica o de diagnóstico con fines médicos, materiales y suministros, o subsidios otorgados para proporcionar servicios de salud de las personas."]
["CLAVE DIFEM","UNIDAD ADMVA. RESPONSABLE (MPAL.)"," METAS","UNIDAD DE MEDIDA","META ANUAL 2021","META ANUAL 2020","META ANUAL 2019","TIPOLOGÍA","ENE","FEB","MAR","ABR","MAY","JUN","JUL","AGO","SEP","OCT","NOV","DIC","Avance Acumulado",null,"OBSERVACIONES"]
[null,null,null,null,null,null,null,null,null,null,null,null,null,null,null,null,null,null,null,null,"Absoluto","Relativo (%)"]
[1,"Dra. DAINY","OTORGAR CONSULTAS MÉDICAS EN CONSULTORIO FIJO  A LA POBLACIÓN DE ESCASOS RECURSOS DEL MUNICIPIO","CONSULTA\n(SvMA)",{"$f":"SUM(I124:T124)","v":0},1200,1200,"PROGRAMADO",null,null,null,null,null,null,null,null,null,null,null,null,{"$f":"SUM(I125:T125)","v":0},{"$f":"IF(ISERROR(U124/E124),0,U124/E124)","v":0},{"$f":"Y124","v":"JUSTIFICAR BAJA"},"DPBF",{"$f":"IF(E124<F124,\"JUSTIFICAR BAJA\",\" \")","v":"JUSTIFICAR BAJA"}]
[null,null,null,null,null,null,null,"REALIZADO"]
[null,null,null,null,null,null,null,"POBLACIÓN BENEFICIADA"]
["Función:","0206 Protección social"]
["Subfunción:","020608 Otros grupos vulnerables"]
["Programa:","02060801  Protección a la población infantil y adolescente.- Agrupa los proyectos que llevan a cabo los gobiernos municipales para garantizar el respeto a los derechos de los infantes y adolescentes, incluyendo aquellos que se encuentran en condiciones de marginación no acompañada, con acciones que mejoren su bienestar y desarrollo."]
["Subprograma:","0206080101 Protección a la integridad del infante y adolescente"]
["Proyecto:","020608010104 Niñas, niños y adolescentes repatriados y en riesgo de migración.- Engloba aquellas actividades coordinadas entre los Sistemas Municipales DIF y el DIF Estatal, encaminadas a la prevención de los riesgos asociados a la migración, así como la atención de las necesidades de los niños, niñas y adolescentes migrantes y repatriados que viajan solos, así como la atención de la problemática colateral a que están expuestos, incluye la promoción de acciones coordinadas de protección y contención familiar y comunitaria con organizaciones sociales civiles"]
["CLAVE DIFEM","UNIDAD ADMVA. RESPONSABLE (MPAL.)"," METAS","UNIDAD DE MEDIDA","META ANUAL 2021","META ANUAL 2020","META ANUAL 2019","TIPOLOGÍA","ENE","FEB","MAR","ABR","MAY","JUN","JUL","AGO","SEP","OCT","NOV","DIC","Avance Acumulado",null,"OBSERVACIONES"]
[null,null,null,null,null,null,null,null,null,null,null,null,null,null,null,null,null,null,null,null,"Absoluto","Relativo (%)"]
[1,null,"DAR SEGUIMIENTO A NIÑAS, NIÑOS Y ADOLESCENTES REPATRIADOS Y ATENDIDOS A TRAVÉS DE LA ESTRATEGIA DE NIÑAS, NIÑOS Y ADOLESCENTES MIGRANTES Y REPATRIADOS NO ACOMPAÑADOS","MENOR\n(MÁXIMA)",{"$f":"MAX(I134:T134)","v":0},0,0,"PROGRAMADO",null,null,null,null,null,null,null,null,null,null,null,null,{"$f":"MAX(I134:T134)","v":0},{"$f":"IF(ISERROR(U134/E134),0,U134/E134)","v":0},{"$f":"Y134","v":"  "},"DPBF",{"$f":"IF(E134<F134,\"JUSTIFICAR BAJA\", \"  \")","v":"  "}]
[null,null,null,null,null,null,null,"REALIZADO"]
[null,null,null,null,null,null,null,"NIÑA"]
[null,null,null,null,null,null,null,"NIÑO"]
["Proyecto:","020608010105  Promoción de la participación infantil y adolescente.- Engloba aquellas actividades orientadas a fomentar y difundir los derechos de los niños, niñas y adolescentes, con el objeto de que cuenten con las herramientas necesarias para su conocimiento, defensa y ejercicio de sus derechos e impulsar en ellos los valores de igualdad, democracia, respeto, tolerancia y amor a la patria, asimismo incluye las acciones para garantizar y proteger el pleno goce, respeto, protección y promoción de sus derechos humanos y todas las funciones conferidas al Ejecutivo Estatal por la Ley de los Derechos de Niñas, Niños y Adolescentes del Estado de México."]
["CLAVE DIFEM","UNIDAD ADMVA. RESPONSABLE (MPAL.)"," METAS","UNIDAD DE MEDIDA","META ANUAL 2021","META ANUAL 2020","META ANUAL 2019","TIPOLOGÍA","ENE","FEB","MAR","ABR","MAY","JUN","JUL","AGO","SEP","OCT","NOV","DIC","Avance Acumulado",null,"OBSERVACIONES"]
[null,null,null,null,null,null,null,null,null,null,null,null,null,null,null,null,null,null,null,null,"Absoluto","Relativo (%)"]
[1,"TRABAJO SOCIAL LIC. T.S. ENEDINA SALVADOR DEL RIO ","PROMOVER LOS DERECHOS DE LAS NIÑAS, NIÑOS Y ADOLESCENTES, ATRAVÉS DE DIFUSORES INFANTILES MUNICIPALES.","PLATICA\n(SvMA)",{"$f":"SUM(I141:T141)","v":0},10,9,"PROGRAMADO",null,null,null,null,null,null,null,null,null,null,null,null,{"$f":"SUM(I142:T142)","v":0},{"$f":"IF(ISERROR(U141/E141),0,U141/E141)","v":0},{"$f":"Y141","v":"JUSTIFICAR BAJA"},"DPBF",{"$f":"IF(E141<F141,\"JUSTIFICAR BAJA\",\" \")","v":"JUSTIFICAR BAJA"}]
[null,null,null,null,null,null,null,"REALIZADO"]
[null,null,null,null,null,null,null,"POBLACIÓN BENEFICIADA"]
[2,"TRABAJO SOCIAL LIC. T.S. ENEDINA SALVADOR DEL RIO ","INTEGRAR GRUPOS PARA PROMOVER EL TALLER DE PARTICIPACIÓN INFANTIL PARA LA PROMOCIÓN DE LOS DERECHOS DE LA NIÑEZ.","GRvPO\n(SvMA)",{"$f":"SUM(I144:T144)","v":0},2,2,"PROGRAMADO",null,null,null,null,null,null,null,null,null,null,null,null,{"$f":"SUM(I145:T145)","v":0},{"$f":"IF(ISERROR(U144/E144),0,U144/E144)","v":0},{"$f":"Y144","v":"JUSTIFICAR BAJA"},"DPBF",{"$f":"IF(E144<F144,\"JUSTIFICAR BAJA\",\" \")","v":"JUSTIFICAR BAJA"}]
[null,null,null,null,null,null,null,"REALIZADO"]
[null,null,null,null,null,null,null,"POBLACIÓN BENEFICIADA"]
[3,"TRABAJO SOCIAL LIC. T.S. ENEDINA SALVADOR DEL RIO ","IMPARTIR SESIONES DEL TALLER DE PARTICIPACIÓN INFANTIL EN LOS DERECHOS DE LA NIÑEZ.","SESIÓN\n(SvMA)",{"$f":"SUM(I147:T147)","v":0},9,9,"PROGRAMADO",null,null,null,null,null,null,null,null,null,null,null,null,{"$f":"SUM(I148:T148)","v":0},{"$f":"IF(ISERROR(U147/E147),0,U147/E147)","v":0},{"$f":"Y147","v":"JUSTIFICAR BAJA"},"DPBF",{"$f":"IF(E147<F147,\"JUSTIFICAR BAJA\",\" \")","v":"JUSTIFICAR BAJA"}]
[null,null,null,null,null,null,null,"REALIZADO"]
[null,null,null,null,null,null,null,"POBLACIÓN BENEFICIADA"]
[4,"TRABAJO SOCIAL LIC. T.S. ENEDINA SALVADOR DEL RIO ","OTORGAR PLÁTICAS SOBRE LA CONVENCIÓN DE LOS DERECHOS A PADRES DE FAMILIA.","PLATICA\n(SvMA)",{"$f":"SUM(I150:T150)","v":0},10,9,"PROGRAMADO",null,null,null,null,null,null,null,null,null,null,null,null,{"$f":"SUM(I151:T151)","v":0},{"$f":"IF(ISERROR(U150/E150),0,U150/E150)","v":0},{"$f":"Y150","v":"JUSTIFICAR BAJA"},"DPBF",{"$f":"IF(E150<F150,\"JUSTIFICAR BAJA\",\" \")","v":"JUSTIFICAR BAJA"}]
[null,null,null,null,null,null,null,"REALIZADO"]
[null,null,null,null,null,null,null,"POBLACIÓN BENEFICIADA"]
[5,"TRABAJO SOCIAL LIC. T.S. ENEDINA SALVADOR DEL RIO ","IMPARTIR PLATICAS A PADRES DE FAMILIA, MAESTROS Y PUBLICO EN GENERAL PARA PROMOVER LA CONVENCIÓN DE LOS DERECHOS DE LA NIÑEZ.","PLATICA\n(SvMA)",{"$f":"SUM(I153:T153)","v":0},9,9,"PROGRAMADO",null,null,null,null,null,null,null,null,null,null,null,null,{"$f":"SUM(I154:T154)","v":0},{"$f":"IF(ISERROR(U153/E153),0,U153/E153)","v":0},{"$f":"Y153","v":"JUSTIFICAR BAJA"},"DPBF",{"$f":"IF(E153<F153,\"JUSTIFICAR BAJA\",\" \")","v":"JUSTIFICAR BAJA"}]
[null,null,null,null,null,null,null,"REALIZADO"]
[null,null,null,null,null,null,null,"POBLACIÓN BENEFICIADA"]
[6,"TRABAJO SOCIAL LIC. T.S. ENEDINA SALVADOR DEL RIO ","LLEVAR A CABO FOROS INFANTILES DE PARTICIPACIÓN DIRIGIDOS A LA POBLACIÓN EN GENERAL.","FORO\n(SvMA)",{"$f":"SUM(I156:T156)","v":0},1,1,"PROGRAMADO",null,null,null,null,null,null,null,null,null,null,null,null,{"$f":"SUM(I157:T157)","v":0},{"$f":"IF(ISERROR(U156/E156),0,U156/E156)","v":0},{"$f":"Y156","v":"JUSTIFICAR BAJA"},"DPBF",{"$f":"IF(E156<F156,\"JUSTIFICAR BAJA\",\" \")","v":"JUSTIFICAR BAJA"}]
[null,null,null,null,null,null,null,"REALIZADO"]
[null,null,null,null,null,null,null,"POBLACIÓN BENEFICIADA"]
[7,"TRABAJO SOCIAL LIC. T.S. ENEDINA SALVADOR DEL RIO ","ELABORAR MATERIAL PARA PROMOCIÓN SOBRE LOS DERECHOS DE LOS NIÑOS.","PvBLICACIÓN\n(SvMA)",{"$f":"SUM(I159:T159)","v":0},10,9,"PROGRAMADO",null,null,null,null,null,null,null,null,null,null,null,null,{"$f":"SUM(I160:T160)","v":0},{"$f":"IF(ISERROR(U159/E159),0,U159/E159)","v":0},{"$f":"Y159","v":"JUSTIFICAR BAJA"},"DPBF",{"$f":"IF(E159<F159,\"JUSTIFICAR BAJA\",\" \")","v":"JUSTIFICAR BAJA"}]
[null,null,null,null,null,null,null,"REALIZADO"]
[null,null,null,null,null,null,null,"POBLACIÓN BENEFICIADA"]
[8,"TRABAJO SOCIAL LIC. T.S. ENEDINA SALVADOR DEL RIO ","REALIZAR CAMPAÑAS Y CONMEMORACIONES DIRIGIDAS AL CUMPLIMIENTO DE LOS DERECHOS DE LA NIÑEZ.","EVENTO\n(SvMA)",{"$f":"SUM(I162:T162)","v":0},2,2,"PROGRAMADO",null,null,null,null,null,null,null,null,null,null,null,null,{"$f":"SUM(I163:T163)","v":0},{"$f":"IF(ISERROR(U162/E162),0,U162/E162)","v":0},{"$f":"Y162","v":"JUSTIFICAR BAJA"},"DPBF",{"$f":"IF(E162<F162,\"JUSTIFICAR BAJA\",\" \")","v":"JUSTIFICAR BAJA"}]
[null,null,null,null,null,null,null,"REALIZADO"]
[null,null,null,null,null,null,null,"POBLACIÓN BENEFICIADA"]
[9,"TRABAJO SOCIAL LIC. T.S. ENEDINA SALVADOR DEL RIO ","REALIZAR EVENTO DE LA ELECCIÓN DE DIFUSORES INFANTILES.","EVENTO\n(SvMA)",{"$f":"SUM(I165:T165)","v":0},1,1,"PROGRAMADO",null,null,null,null,null,null,null,null,null,null,null,null,{"$f":"SUM(I166:T166)","v":0},{"$f":"IF(ISERROR(U165/E165),0,U165/E165)","v":0},{"$f":"Y165","v":"JUSTIFICAR BAJA"},"DPBF",{"$f":"IF(E165<F165,\"JUSTIFICAR BAJA\",\" \")","v":"JUSTIFICAR BAJA"}]
[null,null,null,null,null,null,null,"REALIZADO"]
[null,null,null,null,null,null,null,"POBLACIÓN BENEFICIADA"]
["Programa:","02060802 Atención a personas con discapacidad.- Integra los proyectos orientados a fortalecer la prevención, rehabilitación e integración social, de las personas con discapacidad, con la participación activa de la población en general, promoviendo el desarrollo de esta población en condiciones de respeto y dignidad."]
["Subprograma:","0206080201 Fortalecimiento de los servicios para personas con discapacidad"]
["Proyecto:","020608020102 Orientación e información sobre discapacidad.- Incluye las actividades coadyuvantes en la prevención y disminución de la incidencia- prevalencia de las enfermedades y lesiones que conllevan a la discapacidad."]
["CLAVE DIFEM","UNIDAD ADMVA. RESPONSABLE (MPAL.)"," METAS","UNIDAD DE MEDIDA","META ANUAL 2021","META ANUAL 2020","META ANUAL 2019","TIPOLOGÍA","ENE","FEB","MAR","ABR","MAY","JUN","JUL","AGO","SEP","OCT","NOV","DIC","Avance Acumulado",null,"OBSERVACIONES"]
[null,null,null,null,null,null,null,null,null,null,null,null,null,null,null,null,null,null,null,null,"Absoluto","Relativo (%)"]
[1,"ENFERMERA SAMY ","IMPARTIR PLÁTICAS DE PREVENCIÓN DE LA DISCAPACIDAD EN ESCUELAS, A PADRES DE FAMILIA Y A LA POBLACIÓN EN GENERAL","PLÁTICA\n(SvMA)",{"$f":"SUM(I173:T173)","v":0},145,82,"PROGRAMADO",null,null,null,null,null,null,null,null,null,null,null,null,{"$f":"SUM(I174:T174)","v":0},{"$f":"IF(ISERROR(U173/E173),0,U173/E173)","v":0},{"$f":"Y173","v":"JUSTIFICAR BAJA"},"DAD",{"$f":"IF(E173<F173,\"JUSTIFICAR BAJA\",\" \")","v":"JUSTIFICAR BAJA"}]
[null,null,null,null,null,null,null,"REALIZADO"]
[null,null,null,null,null,null,null,"POBLACIÓN BENEFICIADA"]
[2,"ENFERMERA SAMY ","IMPARTIR TALLERES DE PREVENCIÓN DE LA DISCAPACIDAD EN ESCUELAS, A PADRES DE FAMILIA Y A LA POBLACIÓN EN GENERAL","TALLER\n",{"$f":"SUM(I176:T176)","v":0},12,0,"PROGRAMADO",null,null,null,null,null,null,null,null,null,null,null,null,{"$f":"SUM(I177:T177)","v":0},{"$f":"IF(ISERROR(U176/E176),0,U176/E176)","v":0},{"$f":"Y176","v":"JUSTIFICAR BAJA"},"DAD",{"$f":"IF(E176<F176,\"JUSTIFICAR BAJA\",\" \")","v":"JUSTIFICAR BAJA"}]
[null,null,null,null,null,null,null,"REALIZADO"]
[null,null,null,null,null,null,null,"POBLACIÓN BENEFICIADA"]
[3,"ENFERMERA SAMY ","ORIENTAR E INFORMAR SOBRE LA PREVENCIÓN DE LA DISCAPACIDAD, A TRAVÉS DE ASESORÍAS INDIVIDUALES.","ASESORÍA\n(SvMA)",{"$f":"SUM(I179:T179)","v":0},540,340,"PROGRAMADO",null,null,null,null,null,null,null,null,null,null,null,null,{"$f":"SUM(I180:T180)","v":0},{"$f":"IF(ISERROR(U179/E179),0,U179/E179)","v":0},{"$f":"Y179","v":"JUSTIFICAR BAJA"},"DAD",{"$f":"IF(E179<F179,\"JUSTIFICAR BAJA\",\" \")","v":"JUSTIFICAR BAJA"}]
[null,null,null,null,null,null,null,"REALIZADO"]
[null,null,null,null,null,null,null,"POBLACIÓN BENEFICIADA"]
[4,"ENFERMERA SAMY ","DETECTAR FACTORES DE RIESGO QUE CAUSEN DISCAPACIDAD EN LA POBLACIÓN EN GENERAL ",null,{"$f":"SUM(I182:T182)","v":0},24,0,"PROGRAMADO",null,null,null,null,null,null,null,null,null,null,null,null,{"$f":"SUM(I183:T183)","v":0},{"$f":"IF(ISERROR(U182/E182),0,U182/E182)","v":0},{"$f":"Y182","v":"JUSTIFICAR BAJA"},"DAD",{"$f":"IF(E182<F182,\"JUSTIFICAR BAJA\",\" \")","v":"JUSTIFICAR BAJA"}]
[null,null,null,null,null,null,null,"REALIZADO"]
[null,null,null,null,null,null,null,"POBLACIÓN BENEFICIADA"]
[5,"ENFERMERA SAMY ","ELABORAR MATERIAL DE DIFUSIÓN DE LOS PROGRAMAS DE PREVIDIF ENTRE LA POBLACIÓN (TRÍPTICOS, CARTELES, PERIÓDICOS MURALES Y ROTAFOLIOS)","PvBLICACIÓN\n(SvMA)",{"$f":"SUM(I185:T185)","v":0},42,42,"PROGRAMADO",null,null,null,null,null,null,null,null,null,null,null,null,{"$f":"SUM(I186:T186)","v":0},{"$f":"IF(ISERROR(U185/E185),0,U185/E185)","v":0},{"$f":"Y185","v":"JUSTIFICAR BAJA"},"DAD",{"$f":"IF(E185<F185,\"JUSTIFICAR BAJA\",\" \")","v":"JUSTIFICAR BAJA"}]
[null,null,null,null,null,null,null,"REALIZADO"]
[null,null,null,null,null,null,null,"POBLACIÓN BENEFICIADA"]
["Subprograma:","0206080202 Desarrollo integral para personas con discapacidad",null,null,null,null,null,null,null,null,null,null,null,null,null,null,null,0]
["Proyecto:","020608020201 Capacitación a personas con discapacidad.- Engloba las acciones para promover la integración de personas con discapacidad a actividades de educación, la apertura de espacios laborales, así como el fortalecimiento de acciones que permitan el autoempleo para personas con discapacidad y por consecuencia al desarrollo de las actividades culturales, deportivas y recreativas."]
["CLAVE DIFEM","UNIDAD ADMVA. RESPONSABLE (MPAL.)"," METAS","UNIDAD DE MEDIDA","META ANUAL 2021","META ANUAL 2020","META ANUAL 2019","TIPOLOGÍA","ENE","FEB","MAR","ABR","MAY","JUN","JUL","AGO","SEP","OCT","NOV","DIC","Avance Acumulado",null,"OBSERVACIONES","DAD"]
[null,null,null,null,null,null,null,null,null,null,null,null,null,null,null,null,null,null,null,null,"Absoluto","Relativo (%)"]
[1,"ENFERMERA LIZBETH","IMPARTIR PLATICAS  DE SENsIBILIZACION  EN INTEGRACIÓN SOCIAL  DE PERSONAS CON DISCAPACIDAD A DIVERSOS SECTORES DE LA POBLACIÓ","PLATICAS\n(SUMA)",{"$f":"SUM(I192:T192)","v":0},0,5,"PROGRAMADO",null,null,null,null,null,null,null,null,null,null,null,null,{"$f":"SUM(I193:T193)","v":0},{"$f":"IF(ISERROR(U192/E192),0,U192/E192)","v":0},{"$f":"Y192","v":" "},"DAD",{"$f":"IF(E192<F192,\"JUSTIFICAR BAJA\",\" \")","v":" "}]
[null,null,null,null,null,null,null,"REALIZADO"]
[null,null,null,null,null,null,null,"POBLACIÓN BENEFICIADA"]
[2,"ENFERMERA LIZBETH","INTEGRAR A PERSONAS CON DISCAPACIDAD A EDUCACION ESPECIAL","PERSONA\n(SvMA) ",{"$f":"SUM(I195:T195)","v":0},0,5,"PROGRAMADO",null,null,null,null,null,null,null,null,null,null,null,null,{"$f":"SUM(I196:T196)","v":0},{"$f":"IF(ISERROR(U195/E195),0,U195/E195)","v":0},{"$f":"Y195","v":" "},"DAD",{"$f":"IF(E195<F195,\"JUSTIFICAR BAJA\",\" \")","v":" "}]
[null,null,null,null,null,null,null,"REALIZADO"]
[null,null,null,null,null,null,null,"POBLACIÓN BENEFICIADA"]
[3,"ENFERMERA LIZBETH","INTEGRAR A PERSONAS CON DISCAPACIDAD A EDUCACION REGULAR ","PERSONA\n(SvMA) ",{"$f":"SUM(I198:T198)","v":0},0,3,"PROGRAMADO",null,null,null,null,null,null,null,null,null,null,null,null,{"$f":"SUM(I199:T199)","v":0},{"$f":"IF(ISERROR(U198/E198),0,U198/E198)","v":0},{"$f":"Y198","v":" "},"DAD",{"$f":"IF(E198<F198,\"JUSTIFICAR BAJA\",\" \")","v":" "}]
[null,null,null,null,null,null,null,"REALIZADO"]
[null,null,null,null,null,null,null,"POBLACIÓN BENEFICIADA"]
[4,"ENFERMERA LIZBETH","INTEGRAR  LABORALMENTE A PERSONAS CON DISCAPACIDAD ","PERSONA\n(SvMA) ",{"$f":"SUM(I201:T201)","v":0},0,3,"PROGRAMADO",null,null,null,null,null,null,null,null,null,null,null,null,{"$f":"SUM(I202:T202)","v":0},{"$f":"IF(ISERROR(U201/E201),0,U201/E201)","v":0},{"$f":"Y201","v":" "},"DAD",{"$f":"IF(E201<F201,\"JUSTIFICAR BAJA\",\" \")","v":" "}]
[null,null,null,null,null,null,null,"REALIZADO"]
[null,null,null,null,null,null,null,"POBLACIÓN BENEFICIADA"]
[5,"ENFERMERA LIZBETH","INTEGRAR  A PERSONAS CON DISCAPACIDAD A LA CAPACITACION Y ADIESTRAMIENTO  PRODUCTIVO. ","PERSONA\n(SvMA) ",{"$f":"SUM(I204:T204)","v":0},0,30,"PROGRAMADO",null,null,null,null,null,null,null,null,null,null,null,null,{"$f":"SUM(I205:T205)","v":0},{"$f":"IF(ISERROR(U204/E204),0,U204/E204)","v":0},{"$f":"Y204","v":" "},"DAD",{"$f":"IF(E204<F204,\"JUSTIFICAR BAJA\",\" \")","v":" "}]
[null,null,null,null,null,null,null,"REALIZADO"]
[null,null,null,null,null,null,null,"POBLACIÓN BENEFICIADA"]
[6,"ENFERMERA LIZBETH","INTEGRAR  A PERSONAS CON DISCAPACIDAD A LAS ACTIVIDADES RECREATIVAS O CULTURALES. ","PERSONA\n(SvMA) ",{"$f":"SUM(I207:T207)","v":0},0,25,"PROGRAMADO",null,null,null,null,null,null,null,null,null,null,null,null,{"$f":"SUM(I208:T208)","v":0},{"$f":"IF(ISERROR(U207/E207),0,U207/E207)","v":0},{"$f":"Y207","v":" "},"DAD",{"$f":"IF(E207<F207,\"JUSTIFICAR BAJA\",\" \")","v":" "}]
[null,null,null,null,null,null,null,"REALIZADO"]
[null,null,null,null,null,null,null,"POBLACIÓN BENEFICIADA"]
[7,"ENFERMERA LIZBETH","INTEGRAR  A PERSONAS CON DISCAPACIDAD  O  FAMILIARES A GRUPOS DE AUTOAYUDA ","PERSONA\n(SvMA) ",{"$f":"SUM(I210:T210)","v":0},0,2,"PROGRAMADO",null,null,null,null,null,null,null,null,null,null,null,null,{"$f":"SUM(I211:T211)","v":0},{"$f":"IF(ISERROR(U210/E210),0,U210/E210)","v":0},{"$f":"Y210","v":" "},"DAD",{"$f":"IF(E210<F210,\"JUSTIFICAR BAJA\",\" \")","v":" "}]
[null,null,null,null,null,null,null,"REALIZADO"]
[null,null,null,null,null,null,null,"POBLACIÓN BENEFICIADA"]
["Proyecto:","20608020202 Promoción para el trabajo productivo de personas con discapacidad.- Incorpora las actividades que promueven la apertura de espacios laborales, así como la creación de microempresas que permitan el empleo o autoempleo para personas con discapacidad"]
["CLAVE DIFEM","UNIDAD ADMVA. RESPONSABLE (MPAL.)"," METAS","UNIDAD DE MEDIDA","META ANUAL 2021","META ANUAL 2020","META ANUAL 2019","TIPOLOGÍA","ENE","FEB","MAR","ABR","MAY","JUN","JUL","AGO","SEP","OCT","NOV","DIC","Avance Acumulado",null,"OBSERVACIONES","DAD"]
[null,null,null,null,null,null,null,null,null,null,null,null,null,null,null,null,null,null,null,null,"Absoluto","Relativo (%)"]
[null,null,null,null,{"$f":"SUM(I216:T216)","v":0},0,0,"PROGRAMADO",null,null,null,null,null,null,null,null,null,null,null,null,{"$f":"SUM(I217:T217)","v":0},{"$f":"IF(ISERROR(U216/E216),0,U216/E216)","v":0},{"$f":"Y216","v":" "},"DAD",{"$f":"IF(E216<F216,\"JUSTIFICAR BAJA\",\" \")","v":" "}]
[null,null,null,null,null,null,null,"REALIZADO"]
[null,null,null,null,null,null,null,"POBLACIÓN BENEFICIADA"]
["Subprograma:","0206080203 Rehabilitación a personas con discapacidad"]
["Proyecto:","020608020301 Atención especializada, médica y paramédica a personas con discapacidad.- Incluye las acciones destinadas a brindar atención médica y paramédica especializada a la población con discapacidad física, mental y sensorial, que carezca de seguridad social."]
["CLAVE DIFEM","UNIDAD ADMVA. RESPONSABLE (MPAL.)"," METAS","UNIDAD DE MEDIDA","META ANUAL 2021","META ANUAL 2020","META ANUAL 2019","TIPOLOGÍA","ENE","FEB","MAR","ABR","MAY","JUN","JUL","AGO","SEP","OCT","NOV","DIC","Avance Acumulado",null,"OBSERVACIONES","DAD"]
[null,null,null,null,null,null,null,null,null,null,null,null,null,null,null,null,null,null,null,null,"Absoluto","Relativo (%)"]
["REHABILITACIÓN BASADA EN LA COMUNIDAD (RBC) "]
[1,"LILI CLINICA DE REHABILITACION ","DETECTAR  A PERSONAS CON DISCAPACIDAD","VALORACIÓN\n(SvMA)",{"$f":"SUM(I224:T224)","v":0},240,240,"PROGRAMADO",null,null,null,null,null,null,null,null,null,null,null,null,{"$f":"SUM(I225:T225)","v":0},{"$f":"IF(ISERROR(U224/E224),0,U224/E224)","v":0},{"$f":"Y224","v":"JUSTIFICAR BAJA"},"DAD",{"$f":"IF(E224<F224,\"JUSTIFICAR BAJA\",\" \")","v":"JUSTIFICAR BAJA"}]
[null,null,null,null,null,null,null,"REALIZADO"]
[null,null,null,null,null,null,null,"POBLACIÓN BENEFICIADA"]
[2,"LILI CLINICA DE REHABILITACION ","ORIENTAR A PERSONAS CON DISCAPACIDAD ","ORIENTACIÓN\n(SvMA)",{"$f":"SUM(I227:T227)","v":0},600,600,"PROGRAMADO",null,null,null,null,null,null,null,null,null,null,null,null,{"$f":"SUM(I228:T228)","v":0},{"$f":"IF(ISERROR(U227/E227),0,U227/E227)","v":0},{"$f":"Y227","v":"JUSTIFICAR BAJA"},"DAD",{"$f":"IF(E227<F227,\"JUSTIFICAR BAJA\",\" \")","v":"JUSTIFICAR BAJA"}]
[null,null,null,null,null,null,null,"REALIZADO"]
[null,null,null,null,null,null,null,"POBLACIÓN BENEFICIADA"]
[3,"LILI CLINICA DE REHABILITACION ","CANALIZAR  O REFERIR A  PERSONAS CON DISCAPACIDAD","CANALIZACIÓN \n(SvMA)",{"$f":"SUM(I230:T230)","v":0},240,240,"PROGRAMADO",null,null,null,null,null,null,null,null,null,null,null,null,{"$f":"SUM(I231:T231)","v":0},{"$f":"IF(ISERROR(U230/E230),0,U230/E230)","v":0},{"$f":"Y230","v":"JUSTIFICAR BAJA"},"DAD",{"$f":"IF(E230<F230,\"JUSTIFICAR BAJA\",\" \")","v":"JUSTIFICAR BAJA"}]
[null,null,null,null,null,null,null,"REALIZADO"]
[null,null,null,null,null,null,null,"POBLACIÓN BENEFICIADA"]
[4,"LILI CLINICA DE REHABILITACION ","REALIZAR VISITAS DOMICILIARIAS A PERSONAS CON DISCAPACIDAD ","VISITA\n(SvMA)",{"$f":"SUM(I233:T233)","v":0},171,171,"PROGRAMADO",null,null,null,null,null,null,null,null,null,null,null,null,{"$f":"SUM(I234:T234)","v":0},{"$f":"IF(ISERROR(U233/E233),0,U233/E233)","v":0},{"$f":"Y233","v":"JUSTIFICAR BAJA"},"DAD",{"$f":"IF(E233<F233,\"JUSTIFICAR BAJA\",\" \")","v":"JUSTIFICAR BAJA"}]
[null,null,null,null,null,null,null,"REALIZADO"]
[null,null,null,null,null,null,null,"POBLACIÓN BENEFICIADA"]
[5,"LILI CLINICA DE REHABILITACION ","OTORGAR PLÁTICAS SOBRE REHABILITACIÓN A PERSONAS CON DISCAPACIDAD Y A SUS FAMILIARES","PLÁTICA\n(SvMA)",{"$f":"SUM(I236:T236)","v":0},44,44,"PROGRAMADO",null,null,null,null,null,null,null,null,null,null,null,null,{"$f":"SUM(I237:T237)","v":0},{"$f":"IF(ISERROR(U236/E236),0,U236/E236)","v":0},{"$f":"Y236","v":"JUSTIFICAR BAJA"},"DAD",{"$f":"IF(E236<F236,\"JUSTIFICAR BAJA\",\" \")","v":"JUSTIFICAR BAJA"}]
[null,null,null,null,null,null,null,"REALIZADO"]
[null,null,null,null,null,null,null,"POBLACIÓN BENEFICIADA"]
[6,"LILI CLINICA DE REHABILITACION ","REALIZAR ACCIONES DE INTEGRACIÓN EDUCATIVA A PERSONAS CON DISCAPACIDAD","PERSONA\n(SvMA)",{"$f":"SUM(I239:T239)","v":0},4,4,"PROGRAMADO",null,null,null,null,null,null,null,null,null,null,null,null,{"$f":"SUM(I240:T240)","v":0},{"$f":"IF(ISERROR(U239/E239),0,U239/E239)","v":0},{"$f":"Y239","v":"JUSTIFICAR BAJA"},"DAD",{"$f":"IF(E239<F239,\"JUSTIFICAR BAJA\",\" \")","v":"JUSTIFICAR BAJA"}]
[null,null,null,null,null,null,null,"REALIZADO"]
[null,null,null,null,null,null,null,"POBLACIÓN BENEFICIADA"]
[7,"LILI CLINICA DE REHABILITACION ","REALIZAR ACCIONES DE INTEGRACIÓN LABORAL A PERSONAS CON DISCAPACIDAD","PERSONA\n(SvMA)",{"$f":"SUM(I242:T242)","v":0},2,2,"PROGRAMADO",null,null,null,null,null,null,null,null,null,null,null,null,{"$f":"SUM(I243:T243)","v":0},{"$f":"IF(ISERROR(U242/E242),0,U242/E242)","v":0},{"$f":"Y242","v":"JUSTIFICAR BAJA"},"DAD",{"$f":"IF(E242<F242,\"JUSTIFICAR BAJA\",\" \")","v":"JUSTIFICAR BAJA"}]
[null,null,null,null,null,null,null,"REALIZADO"]
[null,null,null,null,null,null,null,"POBLACIÓN BENEFICIADA"]
[8,"LILI CLINICA DE REHABILITACION ","REALIZAR ACCIONES DE INTEGRACIÓN RECREATIVA Y CULTURAL A PERSONAS CON DISCAPACIDAD","PERSONA\n(SvMA)",{"$f":"SUM(I245:T245)","v":0},4,3,"PROGRAMADO",null,null,null,null,null,null,null,null,null,null,null,null,{"$f":"SUM(I246:T246)","v":0},{"$f":"IF(ISERROR(U245/E245),0,U245/E245)","v":0},{"$f":"Y245","v":"JUSTIFICAR BAJA"},"DAD",{"$f":"IF(E245<F245,\"JUSTIFICAR BAJA\",\" \")","v":"JUSTIFICAR BAJA"}]
[null,null,null,null,null,null,null,"REALIZADO"]
[null,null,null,null,null,null,null,"POBLACIÓN BENEFICIADA"]
[9,"LILI CLINICA DE REHABILITACION ","REALIZAR ACCIONES DE INTEGRACIÓN DEPORTIVA A PERSONAS CON DISCAPACIDAD","PERSONA\n(SvMA)",{"$f":"SUM(I248:T248)","v":0},5,2,"PROGRAMADO",null,null,null,null,null,null,null,null,null,null,null,null,{"$f":"SUM(I249:T249)","v":0},{"$f":"IF(ISERROR(U248/E248),0,U248/E248)","v":0},{"$f":"Y248","v":"JUSTIFICAR BAJA"},"DAD",{"$f":"IF(E248<F248,\"JUSTIFICAR BAJA\",\" \")","v":"JUSTIFICAR BAJA"}]
[null,null,null,null,null,null,null,"REALIZADO"]
[null,null,null,null,null,null,null,"POBLACIÓN BENEFICIADA"]
[10,"LILI CLINICA DE REHABILITACION ","REALIZAR CONVENIOS PARA PERSONAS CON DISCAPACIDAD ","CONVENIO\n(SvMA)",{"$f":"SUM(I251:T251)","v":0},3,3,"PROGRAMADO",null,null,null,null,null,null,null,null,null,null,null,null,{"$f":"SUM(I252:T252)","v":0},{"$f":"IF(ISERROR(U251/E251),0,U251/E251)","v":0},{"$f":"Y251","v":"JUSTIFICAR BAJA"},"DAD",{"$f":"IF(E251<F251,\"JUSTIFICAR BAJA\",\" \")","v":"JUSTIFICAR BAJA"}]
[null,null,null,null,null,null,null,"REALIZADO"]
[null,null,null,null,null,null,null,"POBLACIÓN BENEFICIADA"]
[11,"LILI CLINICA DE REHABILITACION ","OTORGAR DONATIVOS A PERSONAS CON DISCAPACIDAD ","DONATIVO\n(SvMA)",{"$f":"SUM(I254:T254)","v":0},14,14,"PROGRAMADO",null,null,null,null,null,null,null,null,null,null,null,null,{"$f":"SUM(I255:T255)","v":0},{"$f":"IF(ISERROR(U254/E254),0,U254/E254)","v":0},{"$f":"Y254","v":"JUSTIFICAR BAJA"},"DAD",{"$f":"IF(E254<F254,\"JUSTIFICAR BAJA\",\" \")","v":"JUSTIFICAR BAJA"}]
[null,null,null,null,null,null,null,"REALIZADO"]
[null,null,null,null,null,null,null,"POBLACIÓN BENEFICIADA"]
[12,"LILI CLINICA DE REHABILITACION ","APOYAR CON TRANSPORTE A PERSONAS CON DISCAPACIDAD ","APOYO\n(SvMA)",{"$f":"SUM(I257:T257)","v":0},90,90,"PROGRAMADO",null,null,null,null,null,null,null,null,null,null,null,null,{"$f":"SUM(I258:T258)","v":0},{"$f":"IF(ISERROR(U257/E257),0,U257/E257)","v":0},{"$f":"Y257","v":"JUSTIFICAR BAJA"},"DAD",{"$f":"IF(E257<F257,\"JUSTIFICAR BAJA\",\" \")","v":"JUSTIFICAR BAJA"}]
[null,null,null,null,null,null,null,"REALIZADO"]
[null,null,null,null,null,null,null,"POBLACIÓN BENEFICIADA"]
[13,"LILI CLINICA DE REHABILITACION ","ELABORAR MATERIAL DE DIFUSIÓN DEL PROGRAMA DE RBC ","PvBLICACIÓN\n(SvMA)",{"$f":"SUM(I260:T260)","v":0},12,12,"PROGRAMADO",null,null,null,null,null,null,null,null,null,null,null,null,{"$f":"SUM(I261:T261)","v":0},{"$f":"IF(ISERROR(U260/E260),0,U260/E260)","v":0},{"$f":"Y260","v":"JUSTIFICAR BAJA"},"DAD",{"$f":"IF(E260<F260,\"JUSTIFICAR BAJA\",\" \")","v":"JUSTIFICAR BAJA"}]
[null,null,null,null,null,null,null,"REALIZADO"]
[null,null,null,null,null,null,null,"POBLACIÓN BENEFICIADA"]
["REHABILITACIÓN DE PERSONAS CON DISCAPACIDAD, EN UBRIS, URIS O CRIS "]
[14,"ARA UBRIS ","OTORGAR CONSULTAS MÉDICAS  DE REHABILITACIÓN A PERSONAS CON DISCAPACIDAD EN CRIS, URIS O UBRIS","CONSvLTA\n(SvMA)",{"$f":"SUM(I264:T264)","v":0},630,628,"PROGRAMADO",null,null,null,null,null,null,null,null,null,null,null,null,{"$f":"SUM(I265:T265)","v":0},{"$f":"IF(ISERROR(U264/E264),0,U264/E264)","v":0},{"$f":"Y264","v":"JUSTIFICAR BAJA"},"DAD",{"$f":"IF(E264<F264,\"JUSTIFICAR BAJA\",\" \")","v":"JUSTIFICAR BAJA"}]
[null,null,null,null,null,null,null,"REALIZADO"]
[null,null,null,null,null,null,null,"POBLACIÓN BENEFICIADA"]
[15,"ARA UBRIS ","OTORGAR CONSULTAS  DE PSICOLOGIA  A PERSONAS CON DISCAPACIDAD EN CRIS, URIS O UBRIS","CONSvLTA\n(SvMA)",{"$f":"SUM(I267:T267)","v":0},145,145,"PROGRAMADO",null,null,null,null,null,null,null,null,null,null,null,null,{"$f":"SUM(I268:T268)","v":0},{"$f":"IF(ISERROR(U267/E267),0,U267/E267)","v":0},{"$f":"Y267","v":"JUSTIFICAR BAJA"},"DAD",{"$f":"IF(E267<F267,\"JUSTIFICAR BAJA\",\" \")","v":"JUSTIFICAR BAJA"}]
[null,null,null,null,null,null,null,"REALIZADO"]
[null,null,null,null,null,null,null,"POBLACIÓN BENEFICIADA"]
[16,"ARA UBRIS ","OTORGAR CONSULTAS  DE TRABAJO SOCIAL   A PERSONAS CON DISCAPACIDAD EN CRIS, URIS O UBRIS","CONSvLTA\n(SvMA)",{"$f":"SUM(I270:T270)","v":0},369,369,"PROGRAMADO",null,null,null,null,null,null,null,null,null,null,null,null,{"$f":"SUM(I271:T271)","v":0},{"$f":"IF(ISERROR(U270/E270),0,U270/E270)","v":0},{"$f":"Y270","v":"JUSTIFICAR BAJA"},"DAD",{"$f":"IF(E270<F270,\"JUSTIFICAR BAJA\",\" \")","v":"JUSTIFICAR BAJA"}]
[null,null,null,null,null,null,null,"REALIZADO"]
[null,null,null,null,null,null,null,"POBLACIÓN BENEFICIADA"]
[17,"ARA UBRIS ","OTORGAR PLÁTICAS SOBRE REHABILITACIÓN A PERSONAS CON DISCAPACIDAD Y A SUS FAMILIARES","PLÁTICA\n(SvMA)",{"$f":"SUM(I273:T273)","v":0},25,25,"PROGRAMADO",null,null,null,null,null,null,null,null,null,null,null,null,{"$f":"SUM(I274:T274)","v":0},{"$f":"IF(ISERROR(U273/E273),0,U273/E273)","v":0},{"$f":"Y273","v":"JUSTIFICAR BAJA"},"DAD",{"$f":"IF(E273<F273,\"JUSTIFICAR BAJA\",\" \")","v":"JUSTIFICAR BAJA"}]
[null,null,null,null,null,null,null,"REALIZADO"]
[null,null,null,null,null,null,null,"POBLACIÓN BENEFICIADA"]
[18,"ARA UBRIS ","DETECCIÓN DE PERSONAS CON DISCAPACIDAD PERMANENTE","DETECCIÓN\n(SvMA)",{"$f":"SUM(I276:T276)","v":0},45,45,"PROGRAMADO",null,null,null,null,null,null,null,null,null,null,null,null,{"$f":"SUM(I277:T277)","v":0},{"$f":"IF(ISERROR(U276/E276),0,U276/E276)","v":0},{"$f":"Y276","v":"JUSTIFICAR BAJA"},"DAD",{"$f":"IF(E276<F276,\"JUSTIFICAR BAJA\",\" \")","v":"JUSTIFICAR BAJA"}]
[null,null,null,null,null,null,null,"REALIZADO"]
[null,null,null,null,null,null,null,"POBLACIÓN BENEFICIADA"]
[19,"ARA UBRIS ","OTORGAR ALTA A PERSONAS CON DISCAPACIDAD","ALTA\n(SvMA)",{"$f":"SUM(I279:T279)","v":0},18,18,"PROGRAMADO",null,null,null,null,null,null,null,null,null,null,null,null,{"$f":"SUM(I280:T280)","v":0},{"$f":"IF(ISERROR(U279/E279),0,U279/E279)","v":0},{"$f":"Y279","v":"JUSTIFICAR BAJA"},"DAD",{"$f":"IF(E279<F279,\"JUSTIFICAR BAJA\",\" \")","v":"JUSTIFICAR BAJA"}]
[null,null,null,null,null,null,null,"REALIZADO"]
[null,null,null,null,null,null,null,"POBLACIÓN BENEFICIADA"]
[20,"ARA UBRIS ","REFERIR A PERSONAS CON DISCAPACIDAD A OTRAS INSTITUCIONES PARA SU ATENCIÓN. ","PERSONA\n(SvMA)",{"$f":"SUM(I282:T282)","v":0},20,20,"PROGRAMADO",null,null,null,null,null,null,null,null,null,null,null,null,{"$f":"SUM(I283:T283)","v":0},{"$f":"IF(ISERROR(U282/E282),0,U282/E282)","v":0},{"$f":"Y282","v":"JUSTIFICAR BAJA"},"DAD",{"$f":"IF(E282<F282,\"JUSTIFICAR BAJA\",\" \")","v":"JUSTIFICAR BAJA"}]
[null,null,null,null,null,null,null,"REALIZADO"]
[null,null,null,null,null,null,null,"POBLACIÓN BENEFICIADA"]
["Proyecto:","020608020302 Atención terapéutica a personas con discapacidad.- Comprende las actividades tendientes a proporcionar atención especializada de carácter terapéutico, físico, ocupacional y de lenguaje a personas con discapacidad, para lograr su rehabilitación en forma integral."]
["CLAVE DIFEM","UNIDAD ADMVA. RESPONSABLE (MPAL.)"," METAS","UNIDAD DE MEDIDA","META ANUAL 2021","META ANUAL 2020","META ANUAL 2019","TIPOLOGÍA","ENE","FEB","MAR","ABR","MAY","JUN","JUL","AGO","SEP","OCT","NOV","DIC","Avance Acumulado",null,"OBSERVACIONES","DAD"]
[null,null,null,null,null,null,null,null,null,null,null,null,null,null,null,null,null,null,null,null,"Absoluto","Relativo (%)"]
[1,"ARA UBRIS ","APLICAR TERAPIAS FÍSICAS, A PERSONAS CON DISCAPACIDAD   EN CRIS, URIS O UBRIS","TERAPIA\n(SvMA)",{"$f":"SUM(I288:T288)","v":0},8010,8005,"PROGRAMADO",null,null,null,null,null,null,null,null,null,null,null,null,{"$f":"SUM(I289:T289)","v":0},{"$f":"IF(ISERROR(U288/E288),0,U288/E288)","v":0},{"$f":"Y288","v":"JUSTIFICAR BAJA"},"DAD",{"$f":"IF(E288<F288,\"JUSTIFICAR BAJA\",\" \")","v":"JUSTIFICAR BAJA"}]
[null,null,null,null,null,null,null,"REALIZADO"]
[null,null,null,null,null,null,null,"POBLACIÓN BENEFICIADA"]
[2,"ARA UBRIS ","APLICAR TERAPIAS OCUPACIONALES A PERSONAS CON DISCAPACIDAD EN CRIS, URIS O UBRIS","TERAPIA\n(SvMA)",{"$f":"SUM(I291:T291)","v":0},1834,1830,"PROGRAMADO",null,null,null,null,null,null,null,null,null,null,null,null,{"$f":"SUM(I292:T292)","v":0},{"$f":"IF(ISERROR(U291/E291),0,U291/E291)","v":0},{"$f":"Y291","v":"JUSTIFICAR BAJA"},"DAD",{"$f":"IF(E291<F291,\"JUSTIFICAR BAJA\",\" \")","v":"JUSTIFICAR BAJA"}]
[null,null,null,null,null,null,null,"REALIZADO"]
[null,null,null,null,null,null,null,"POBLACIÓN BENEFICIADA"]
[3,"ARA UBRIS ","APLICAR TERAPIAS EN PROGRAMA DE ESTIMULACIÓN TEMPRANA A NIÑOS CON DISCAPACIDAD EN CRIS, URIS O UBRIS","TERAPIA\n(SvMA)",{"$f":"SUM(I294:T294)","v":0},867,865,"PROGRAMADO",null,null,null,null,null,null,null,null,null,null,null,null,{"$f":"SUM(I295:T295)","v":0},{"$f":"IF(ISERROR(U294/E294),0,U294/E294)","v":0},{"$f":"Y294","v":"JUSTIFICAR BAJA"},"DAD",{"$f":"IF(E294<F294,\"JUSTIFICAR BAJA\",\" \")","v":"JUSTIFICAR BAJA"}]
[null,null,null,null,null,null,null,"REALIZADO"]
[null,null,null,null,null,null,null,"POBLACIÓN BENEFICIADA"]
[4,"ARA UBRIS ","APLICAR TERAPIAS DE LENGUAJE A PERSONAS CON DISCAPACIDAD EN CRIS, URIS O UBRIS","TERAPIA\n(SvMA)",{"$f":"SUM(I297:T297)","v":0},725,722,"PROGRAMADO",null,null,null,null,null,null,null,null,null,null,null,null,{"$f":"SUM(I298:T298)","v":0},{"$f":"IF(ISERROR(U297/E297),0,U297/E297)","v":0},{"$f":"Y297","v":"JUSTIFICAR BAJA"},"DAD",{"$f":"IF(E297<F297,\"JUSTIFICAR BAJA\",\" \")","v":"JUSTIFICAR BAJA"}]
[null,null,null,null,null,null,null,"REALIZADO"]
[null,null,null,null,null,null,null,"POBLACIÓN BENEFICIADA"]
[5,"ARA UBRIS ","SOLICITAR EL EQUIPAMIENTO DE CRIS, URIS Y UBRIS","CRIS/vRIS/vBRIS (MÁXIMA) ",{"$f":"MAX(I300:T300)","v":0},1,1,"PROGRAMADO",null,null,null,null,null,null,null,null,null,null,null,null,{"$f":"MAX(I301:T301)","v":0},{"$f":"IF(ISERROR(U300/E300),0,U300/E300)","v":0},{"$f":"Y300","v":"JUSTIFICAR BAJA"},"DAD",{"$f":"IF(E300<F300,\"JUSTIFICAR BAJA\",\" \")","v":"JUSTIFICAR BAJA"}]
[null,null,null,null,null,null,null,"REALIZADO"]
[null,null,null,null,null,null,null,"POBLACIÓN BENEFICIADA"]
[6,"ARA UBRIS ","OTORGAR DONATIVOS A PERSONAS CON DISCAPACIDAD ","AYvDA FvNCIONAL (SvMA)",{"$f":"SUM(I303:T303)","v":0},10,10,"PROGRAMADO",null,null,null,null,null,null,null,null,null,null,null,null,{"$f":"SUM(I304:T304)","v":0},{"$f":"IF(ISERROR(U303/E303),0,U303/E303)","v":0},{"$f":"Y303","v":"JUSTIFICAR BAJA"},"DAD",{"$f":"IF(E303<F303,\"JUSTIFICAR BAJA\",\" \")","v":"JUSTIFICAR BAJA"}]
[null,null,null,null,null,null,null,"REALIZADO"]
[null,null,null,null,null,null,null,"POBLACIÓN BENEFICIADA"]
[7,"ARA UBRIS ","INTEGRAR EXPEDIENTES PARA LA DONACION DE AYUDAS FUNCIONALES A TRAVES DEL DIFEM. ","EXPEDIENTE APROBADO\n(SvMA) ",{"$f":"SUM(I306:T306)","v":0},10,10,"PROGRAMADO",null,null,null,null,null,null,null,null,null,null,null,null,{"$f":"SUM(I307:T307)","v":0},{"$f":"IF(ISERROR(U306/E306),0,U306/E306)","v":0},{"$f":"Y306","v":"JUSTIFICAR BAJA"},"DAD",{"$f":"IF(E306<F306,\"JUSTIFICAR BAJA\",\" \")","v":"JUSTIFICAR BAJA"}]
[null,null,null,null,null,null,null,"REALIZADO"]
[null,null,null,null,null,null,null,"POBLACIÓN BENEFICIADA"]
[8,"ARA UBRIS ","SOLICITAR LA CANALIZACIÓN DE MENORES SUSCEPTIBLES DE QUE SE LES OTORGUEN TERAPIAS DE REHABILITACIÓN EN CRIT, EN COORDINACIÓN CON DIFEM Y FUNDACIÓN TELETON","BECA\n(MÁXIMA)",{"$f":"MAX(I309:T309)","v":0},0,0,"PROGRAMADO",null,null,null,null,null,null,null,null,null,null,null,null,{"$f":"MAX(I310:T310)","v":0},{"$f":"IF(ISERROR(U309/E309),0,U309/E309)","v":0},{"$f":"Y309","v":" "},"DAD",{"$f":"IF(E309<F309,\"JUSTIFICAR BAJA\",\" \")","v":" "}]
[null,null,null,null,null,null,null,"REALIZADO"]
[null,null,null,null,null,null,null,"POBLACIÓN BENEFICIADA"]
[9,"ARA UBRIS ","FABRICAR AYUDAS FUNCIONALES EN LOS SMDIF","AYvDA FvNCIONAL (SvMA)",{"$f":"SUM(I312:T312)","v":0},0,0,"PROGRAMADO",null,null,null,null,null,null,null,null,null,null,null,null,{"$f":"SUM(I313:T313)","v":0},{"$f":"IF(ISERROR(U312/E312),0,U312/E312)","v":0},{"$f":"Y312","v":" "},"DAD",{"$f":"IF(E312<F312,\"JUSTIFICAR BAJA\",\" \")","v":" "}]
[null,null,null,null,null,null,null,"REALIZADO"]
[null,null,null,null,null,null,null,"POBLACIÓN BENEFICIADA"]
[10,"ARA UBRIS ","REPARAR AYUDAS FUNCIONALES EN LOS SMDIF","AYvDA FvNCIONAL (SvMA)",{"$f":"SUM(I315:T315)","v":0},0,5,"PROGRAMADO",null,null,null,null,null,null,null,null,null,null,null,null,{"$f":"SUM(I316:T316)","v":0},{"$f":"IF(ISERROR(U315/E315),0,U315/E315)","v":0},{"$f":"Y315","v":" "},"DAD",{"$f":"IF(E315<F315,\"JUSTIFICAR BAJA\",\" \")","v":" "}]
[null,null,null,null,null,null,null,"REALIZADO"]
[null,null,null,null,null,null,null,"POBLACIÓN BENEFICIADA"]
["Programa:","02060804 Desarrollo integral de la familia.- Engloba los proyectos orientados a fomentar la integración familiar, el respeto y el impulso de valores que permitan a cada individuo un desarrollo armónico, sano, pleno que asista al mejoramiento en las condiciones de vida y empoderando el respeto a los derechos de la niñez, adolescentes, mujeres, discapacitados y adultos mayores."]
["Subprograma:","0206080401 Prevención y bienestar familiar"]
["Proyecto:","020608040101 Fomento a la integración de la familia.- Contempla las acciones para otorgar atención, orientación y asesoría a familias sobre los procesos físicos, psicológicos, biológicos y sociales, mediante diversas actividades para mejorar la calidad de vida de sus integrantes en la esfera personal y de grupo familiar, y establecer proyectos de vida más eficaces."]
["CLAVE DIFEM","UNIDAD ADMVA. RESPONSABLE (MPAL.)"," METAS","UNIDAD DE MEDIDA","META ANUAL 2021","META ANUAL 2020","META ANUAL 2019","TIPOLOGÍA","ENE","FEB","MAR","ABR","MAY","JUN","JUL","AGO","SEP","OCT","NOV","DIC","Avance Acumulado",null,"OBSERVACIONES"]
[null,null,null,null,null,null,null,null,null,null,null,null,null,null,null,null,null,null,null,null,"Absoluto","Relativo (%)"]
[1,"PSICOLOGA ELVIA ","IMPARTIR CURSOS DE ESCUELA DE ORIENTACIÓN PARA PADRES Y DESARROLLO DE HABILIDADES PARA LA FORMACIÓN DE LA PAREJA Y LA FAMILIA A POBLACIÓN ABIERTA.","PLÁTICA\n(SvMA)",{"$f":"SUM(I323:T323)","v":0},60,58,"PROGRAMADO",null,null,null,null,null,null,null,null,null,null,null,null,{"$f":"SUM(I324:T324)","v":0},{"$f":"IF(ISERROR(U323/E323),0,U323/E323)","v":0},{"$f":"Y323","v":"JUSTIFICAR BAJA"},"DPBF",{"$f":"IF(E323<F323,\"JUSTIFICAR BAJA\",\" \")","v":"JUSTIFICAR BAJA"}]
[null,null,null,null,null,null,null,"REALIZADO"]
[null,null,null,null,null,null,null,"POBLACIÓN BENEFICIADA"]
["Proyecto:","020608040102 Atención a víctimas por maltrato y abuso.- Incluye las acciones para brindar atención integral a menores, personas con discapacidad, adultos mayores, mujeres y hombres que hayan sido víctimas y/o generadores de maltrato, así como a sus familias, a través de un grupo de profesionales en el área médica, psicológica, jurídica y social."]
["CLAVE DIFEM","UNIDAD ADMVA. RESPONSABLE (MPAL.)"," METAS","UNIDAD DE MEDIDA","META ANUAL 2021","META ANUAL 2020","META ANUAL 2019","TIPOLOGÍA","ENE","FEB","MAR","ABR","MAY","JUN","JUL","AGO","SEP","OCT","NOV","DIC","Avance Acumulado",null,"OBSERVACIONES"]
[null,null,null,null,null,null,null,null,null,null,null,null,null,null,null,null,null,null,null,null,"Absoluto","Relativo (%)"]
[1,"JURIDICO ","DIFUNDIR EL MODELO DE ATENCIÓN EN MATERIA DE PROTECCIÓN DE DERECHOS DE LAS NIÑAS, NIÑOS Y ADOLESCENTESA TRAVÉS DE PLÁTICAS EN ESCUELAS, PADRES DE FAMILIA Y POBLACION ABIERTA","PLÁTICA\n(SvMA)",{"$f":"SUM(I329:T329)","v":0},30,30,"PROGRAMADO",null,null,null,null,null,null,null,null,null,null,null,null,{"$f":"SUM(I330:T330)","v":0},{"$f":"IF(ISERROR(U329/E329),0,U329/E329)","v":0},{"$f":"Y329","v":"JUSTIFICAR BAJA"},"PPNYN",{"$f":"IF(E329<F329,\"JUSTIFICAR BAJA\",\" \")","v":"JUSTIFICAR BAJA"}]
[null,null,null,null,null,null,null,"REALIZADO"]
[null,null,null,null,null,null,null,"POBLACIÓN BENEFICIADA"]
[2,"JURIDICO ","ATENDER A NIÑAS, NIÑOS Y ADOLESCENTES EN DONDE SE HAYAN DETECTADO Y COMPROBADO ACTOS U OMISIONES QUE VULNEREN SUS DERECHOS EN LA PROCURADURIA DE PROTECCION MUNICIPAL","REPORTE\n(SvMA)",{"$f":"SUM(I332:T332)","v":0},8,8,"PROGRAMADO",null,null,null,null,null,null,null,null,null,null,null,null,{"$f":"SUM(I333:T333)","v":0},{"$f":"IF(ISERROR(U332/E332),0,U332/E332)","v":0},{"$f":"Y332","v":"JUSTIFICAR BAJA"},"PPNYN",{"$f":"IF(E332<F332,\"JUSTIFICAR BAJA\",\" \")","v":"JUSTIFICAR BAJA"}]
[null,null,null,null,null,null,null,"REALIZADO"]
[null,null,null,null,null,null,null,"POBLACIÓN BENEFICIADA"]
[3,"JURIDICO ","DETECTAR SI EXISTE UNA PROBABLE VULNERACION O RESTRICCION DERECHOS DE LAS NIÑAS, NIÑOS Y ADOLESCENTE, A TRAVÉS DE UN REPORTE DE MANERA TELEFÓNICA O DE FORMA PERSONAL","REPORTE\n(SvMA)",{"$f":"SUM(I335:T335)","v":0},22,22,"PROGRAMADO",null,null,null,null,null,null,null,null,null,null,null,null,{"$f":"SUM(I336:T336)","v":0},{"$f":"IF(ISERROR(U335/E335),0,U335/E335)","v":0},{"$f":"Y335","v":"JUSTIFICAR BAJA"},"PPNYN",{"$f":"IF(E335<F335,\"JUSTIFICAR BAJA\",\" \")","v":"JUSTIFICAR BAJA"}]
[null,null,null,null,null,null,null,"REALIZADO"]
[null,null,null,null,null,null,null,"POBLACIÓN BENEFICIADA"]
["Proyecto:","020608040103 Servicios jurídico asistenciales a la familia.- Contiene las acciones relacionadas con la orientación y asesoría jurídica a hombres y mujeres en situación de vulnerabilidad, en donde no se vean comprometidos de manera directa o indirecta los derechos de niñas, niños y adolescentes y/o adultos mayores; a fin de salvaguardar sus derechos y garantizar una sana convivencia al interior del núcleo familiar."]
["CLAVE DIFEM","UNIDAD ADMVA. RESPONSABLE (MPAL.)"," METAS","UNIDAD DE MEDIDA","META ANUAL 2021","META ANUAL 2020","META ANUAL 2019","TIPOLOGÍA","ENE","FEB","MAR","ABR","MAY","JUN","JUL","AGO","SEP","OCT","NOV","DIC","Avance Acumulado",null,"OBSERVACIONES"]
[null,null,null,null,null,null,null,null,null,null,null,null,null,null,null,null,null,null,null,null,"Absoluto","Relativo (%)"]
[1,"JURIDICO ","OTORGAR ASESORIA JURIDICA A LA POBLACIÓN EN MATERIA FAMILIAR PARA GARANTIZAR LA PRESERVACIÓN DE SUS DERECHOS","ASESORÍA\n(SvMA)",{"$f":"SUM(I341:T341)","v":0},990,990,"PROGRAMADO",null,null,null,null,null,null,null,null,null,null,null,null,{"$f":"SUM(I342:T342)","v":0},{"$f":"IF(ISERROR(U341/E341),0,U341/E341)","v":0},{"$f":"Y341","v":"JUSTIFICAR BAJA"},"PPNYN",{"$f":"IF(E341<F341,\"JUSTIFICAR BAJA\",\" \")","v":"JUSTIFICAR BAJA"}]
[null,null,null,null,null,null,null,"REALIZADO"]
[null,null,null,null,null,null,null,"POBLACIÓN BENEFICIADA"]
[2,"JURIDICO ","REPORTAR LA CONCLUSIÓN DE LOS JUICIOS PATROCINADOS ALA POBLACIÓN DE ESCADOS RECURSOS EN JUICIOS DE DERECHO FAMILIAR","JvICIO\n(SvMA)",{"$f":"SUM(I344:T344)","v":0},57,57,"PROGRAMADO",null,null,null,null,null,null,null,null,null,null,null,null,{"$f":"SUM(I345:T345)","v":0},{"$f":"IF(ISERROR(U344/E344),0,U344/E344)","v":0},{"$f":"Y344","v":"JUSTIFICAR BAJA"},"PPNYN",{"$f":"IF(E344<F344,\"JUSTIFICAR BAJA\",\" \")","v":"JUSTIFICAR BAJA"}]
[null,null,null,null,null,null,null,"REALIZADO"]
[null,null,null,null,null,null,null,"POBLACIÓN BENEFICIADA"]
["Proyecto:","020608040106 Orientación y atención psicológica y psiquiátrica.- Incluye aquellas actividades enfocadas a disminuir la aparición de trastornos emocionales y conductuales en la población, tratando de incidir en las causas familiares, individuales y sociales; incorpora las acciones orientadas a la atención de enfermedades mentales."]
["CLAVE DIFEM","UNIDAD ADMVA. RESPONSABLE (MPAL.)"," METAS","UNIDAD DE MEDIDA","META ANUAL 2021","META ANUAL 2020","META ANUAL 2019","TIPOLOGÍA","ENE","FEB","MAR","ABR","MAY","JUN","JUL","AGO","SEP","OCT","NOV","DIC","Avance Acumulado",null,"OBSERVACIONES"]
[null,null,null,null,null,null,null,null,null,null,null,null,null,null,null,null,null,null,null,null,"Absoluto","Relativo (%)"]
[1,"Psicologo Isac","ATENDER A PACIENTES SUBSECUENTES Y CLASIFICARLOS POR TIPO DE TRASTORNO","CONSvLTA\n(SvMA)",{"$f":"SUM(I350:T350)","v":0},1600,1465,"PROGRAMADO",null,null,null,null,null,null,null,null,null,null,null,null,{"$f":"SUM(I351:T351)","v":0},{"$f":"IF(ISERROR(U350/E350),0,U350/E350)","v":0},{"$f":"Y350","v":"JUSTIFICAR BAJA"},"DPBF",{"$f":"IF(E350<F350,\"JUSTIFICAR BAJA\",\" \")","v":"JUSTIFICAR BAJA"}]
[null,null,null,null,null,null,null,"REALIZADO"]
[null,null,null,null,null,null,null,"POBLACIÓN BENEFICIADA"]
[2,"Psicologo Isac","ATENDER A PACIENTES DE PRIMERA VEZ Y CLASIFICARLOS POR TIPO DE TRASTORNO","CONSvLTA\n(SvMA)",{"$f":"SUM(I353:T353)","v":0},210,205,"PROGRAMADO",null,null,null,null,null,null,null,null,null,null,null,null,{"$f":"SUM(I354:T354)","v":0},{"$f":"IF(ISERROR(U353/E353),0,U353/E353)","v":0},{"$f":"Y353","v":"JUSTIFICAR BAJA"},"DPBF",{"$f":"IF(E353<F353,\"JUSTIFICAR BAJA\",\" \")","v":"JUSTIFICAR BAJA"}]
[null,null,null,null,null,null,null,"REALIZADO"]
[null,null,null,null,null,null,null,"POBLACIÓN BENEFICIADA"]
[3,"Psicologo Isac","OTORGAR PLÁTICAS, TALLERES  Y CONFERENCIAS PARA LA PREVENCIÓN DE TRASTORNOS EMOCIONALES Y PROMOCIÓN DE LA SALUD MENTAL EN ESCUELAS Y POBLACIÓN ABIERTA","PLÁTICA/ TALLER/ CONFERENCIA\n(SvMA)",{"$f":"SUM(I356:T356)","v":0},65,65,"PROGRAMADO",null,null,null,null,null,null,null,null,null,null,null,null,{"$f":"SUM(I357:T357)","v":0},{"$f":"IF(ISERROR(U356/E356),0,U356/E356)","v":0},{"$f":"Y356","v":"JUSTIFICAR BAJA"},"DPBF",{"$f":"IF(E356<F356,\"JUSTIFICAR BAJA\",\" \")","v":"JUSTIFICAR BAJA"}]
[null,null,null,null,null,null,null,"REALIZADO"]
[null,null,null,null,null,null,null,"POBLACIÓN BENEFICIADA"]
[4,"Psicologo Isac","REALIZAR JORNADAS DE SALUD MENTAL DESTINADAS A LA PREVENCIÓN DE TRASTORNOS EMOCIONALES Y CONDUCTUALES","JORNADA\n(SvMA)",{"$f":"SUM(I359:T359)","v":0},1,1,"PROGRAMADO",null,null,null,null,null,null,null,null,null,null,null,null,{"$f":"SUM(I360:T360)","v":0},{"$f":"IF(ISERROR(U359/E359),0,U359/E359)","v":0},{"$f":"Y359","v":"JUSTIFICAR BAJA"},"DPBF",{"$f":"IF(E359<F359,\"JUSTIFICAR BAJA\",\" \")","v":"JUSTIFICAR BAJA"}]
[null,null,null,null,null,null,null,"REALIZADO"]
[null,null,null,null,null,null,null,"POBLACIÓN BENEFICIADA"]
["Programa:","02060805  Igualdad de trato y oportunidades para la mujer y el hombre.- Engloba los proyectos para promover en todos los ámbitos sociales la igualdad sustantiva desde una perspectiva de género como una condición necesaria para el desarrollo integral de la sociedad, en igualdad de condiciones, oportunidades, derechos y obligaciones."]
["Subprograma:","0206080501 Participación social de la mujer"]
["Proyecto:","020608050101 Coordinación Institucional para la igualdad de género.- Incluye las acciones realizadas por los gobiernos municipales, que deriven de la \"Ley de Igualdad de Trato y Oportunidades entre Mujeres y Hombres del Estado de México\"; dirigidas a fortalecer el goce, respeto, protección y promoción de los derechos y el desarrollo integral de las mujeres y los hombres."]
["CLAVE DIFEM","UNIDAD ADMVA. RESPONSABLE (MPAL.)"," METAS","UNIDAD DE MEDIDA","META ANUAL 2021","META ANUAL 2020","META ANUAL 2019","TIPOLOGÍA","ENE","FEB","MAR","ABR","MAY","JUN","JUL","AGO","SEP","OCT","NOV","DIC","Avance Acumulado",null,"OBSERVACIONES"]
[null,null,null,null,null,null,null,null,null,null,null,null,null,null,null,null,null,null,null,null,"Absoluto","Relativo (%)"]
[1,"PSICOLOGA LETICIA","IMPARTIR TALLERES DE CAPACITACIÓN PARA EL TRABAJO (AUTOEMPLEO Y AUTOCONSUMO)","TALLER\n(SvMA)",{"$f":"SUM(I367:T367)","v":0},5,5,"PROGRAMADO",null,null,null,null,null,null,null,null,null,null,null,null,{"$f":"SUM(I368:T368)","v":0},{"$f":"IF(ISERROR(U367/E367),0,U367/E367)","v":0},{"$f":"Y367","v":"JUSTIFICAR BAJA"},"DPBF",{"$f":"IF(E367<F367,\"JUSTIFICAR BAJA\",\" \")","v":"JUSTIFICAR BAJA"}]
[null,null,null,null,null,null,null,"REALIZADO"]
[null,null,null,null,null,null,null,"POBLACIÓN BENEFICIADA"]
[2,"PSICOLOGA LETICIA","IMPARTIR JORNADAS DE DIGNIFICACIÓN DE LA MUJER","JORNADA\n(SvMA)",{"$f":"SUM(I370:T370)","v":0},2,2,"PROGRAMADO",null,null,null,null,null,null,null,null,null,null,null,null,{"$f":"SUM(I371:T371)","v":0},{"$f":"IF(ISERROR(U370/E370),0,U370/E370)","v":0},{"$f":"Y370","v":"JUSTIFICAR BAJA"},"DPBF",{"$f":"IF(E370<F370,\"JUSTIFICAR BAJA\",\" \")","v":"JUSTIFICAR BAJA"}]
[null,null,null,null,null,null,null,"REALIZADO"]
[null,null,null,null,null,null,null,"POBLACIÓN BENEFICIADA"]
[3,"PSICOLOGA LETICIA","IMPARTIR PLÁTICAS DE PREVENCIÓN DE TRASTORNOS EMOCIONALES","PLÁTICA\n(SvMA)",{"$f":"SUM(I373:T373)","v":0},61,61,"PROGRAMADO",null,null,null,null,null,null,null,null,null,null,null,null,{"$f":"SUM(I374:T374)","v":0},{"$f":"IF(ISERROR(U373/E373),0,U373/E373)","v":0},{"$f":"Y373","v":"JUSTIFICAR BAJA"},"DPBF",{"$f":"IF(E373<F373,\"JUSTIFICAR BAJA\",\" \")","v":"JUSTIFICAR BAJA"}]
[null,null,null,null,null,null,null,"REALIZADO"]
[null,null,null,null,null,null,null,"POBLACIÓN BENEFICIADA"]
[4,"PSICOLOGA LETICIA","IMPARTIR TALLERES PREVENTIVOS DE DEPRESIÓN","TALLER\n(SvMA)",{"$f":"SUM(I376:T376)","v":6},6,6," ",0,1,1,1,0,1,0,1,0,1,0,0,{"$f":"SUM(I377:T377)","v":0},{"$f":"IF(ISERROR(U376/E376),0,U376/E376)","v":0},{"$f":"Y376","v":" "},"DPBF",{"$f":"IF(E376<F376,\"JUSTIFICAR BAJA\",\" \")","v":" "}]
[null,null,null,null,null,null,null,"REALIZADO"]
[null,null,null,null,null,null,null,"POBLACIÓN BENEFICIADA"]
[5,"PSICOLOGA LETICIA","IMPARTIR TALLER DE GÉNERO MASCULINO","TALLER\n(SvMA)",{"$f":"SUM(I379:T379)","v":0},3,3,"PROGRAMADO",null,null,null,null,null,null,null,null,null,null,null,null,{"$f":"SUM(I380:T380)","v":0},{"$f":"IF(ISERROR(U379/E379),0,U379/E379)","v":0},{"$f":"Y379","v":"JUSTIFICAR BAJA"},"DPBF",{"$f":"IF(E379<F379,\"JUSTIFICAR BAJA\",\" \")","v":"JUSTIFICAR BAJA"}]
[null,null,null,null,null,null,null,"REALIZADO"]
[null,null,null,null,null,null,null,"POBLACIÓN BENEFICIADA"]
["Proyecto:","020608050102 Cultura de igualdad y prevención de la violencia de género.- Incorpora las actividades enfocadas a promover, fomentar y consolidar la igualdad de derechos entre hombres y mujeres, a través de valores de convivencia y ayuda mutua, para contribuir a mejorar la situación social."]
["CLAVE DIFEM","UNIDAD ADMVA. RESPONSABLE (MPAL.)"," METAS","UNIDAD DE MEDIDA","META ANUAL 2021","META ANUAL 2020","META ANUAL 2019","TIPOLOGÍA","ENE","FEB","MAR","ABR","MAY","JUN","JUL","AGO","SEP","OCT","NOV","DIC","Avance Acumulado",null,"OBSERVACIONES"]
[null,null,null,null,null,null,null,null,null,null,null,null,null,null,null,null,null,null,null,null,"Absoluto","Relativo (%)"]
[null,null,null,null,{"$f":"SUM(I385:T385)","v":0},0,0,"PROGRAMADO",null,null,null,null,null,null,null,null,null,null,null,null,{"$f":"SUM(I386:T386)","v":0},{"$f":"IF(ISERROR(U385/E385),0,U385/E385)","v":0},{"$f":"Y385","v":" "},"DJSA",{"$f":"IF(E385<F385,\"JUSTIFICAR BAJA\",\" \")","v":" "}]
[null,null,null,null,null,null,null,"REALIZADO"]
[null,null,null,null,null,null,null,"POBLACIÓN BENEFICIADA"]
["Proyecto:","020608050103 Atención social y educativa para hijos de madres y padres trabajadores.- Incluye las actividades referentes a la operación de estancias, guarderías y jardines de niños con servicio de comedor, para hijos de madres trabajadoras."]
["CLAVE DIFEM","UNIDAD ADMVA. RESPONSABLE (MPAL.)"," METAS","UNIDAD DE MEDIDA","META ANUAL 2021","META ANUAL 2020","META ANUAL 2019","TIPOLOGÍA","ENE","FEB","MAR","ABR","MAY","JUN","JUL","AGO","SEP","OCT","NOV","DIC","Avance Acumulado",null,"OBSERVACIONES"]
[null,null,null,null,null,null,null,null,null,null,null,null,null,null,null,null,null,null,null,null,"Absoluto","Relativo (%)"]
[1,"L.P. LESLY AMADO ","ATENDER PERMANENTEMENTE EN ESTANCIAS INFANTILES A HIJOS DE MADRES TRABAJADORAS EN LOS SMDIF","NIÑO\n(MÁXIMA)",{"$f":"MAX(I391:T391)","v":0},54,45,"PROGRAMADO",null,null,null,null,null,null,null,null,null,null,null,null,{"$f":"MAX(I392:T392)","v":0},{"$f":"IF(ISERROR(U391/E391),0,U391/E391)","v":0},{"$f":"Y391","v":"JUSTIFICAR BAJA"},null,{"$f":"IF(E391<F391,\"JUSTIFICAR BAJA\",\" \")","v":"JUSTIFICAR BAJA"}]
[null,null,null,null,null,null,null,"REALIZADO"]
[null,null,null,null,null,null,null,"POBLACIÓN BENEFICIADA"]
["Proyecto:","020608050104 Apoyo social para el empoderamiento económico de la mujer.-Comprende aquellas acciones encaminadas a reconocer el trabajo no remunerado que realizan las mujeres como amas de casa y tomar acciones para combinar esta tarea con el empleo remunerado."]
["CLAVE DIFEM","UNIDAD ADMVA. RESPONSABLE (MPAL.)"," METAS","UNIDAD DE MEDIDA","META ANUAL 2021","META ANUAL 2020","META ANUAL 2019","TIPOLOGÍA","ENE","FEB","MAR","ABR","MAY","JUN","JUL","AGO","SEP","OCT","NOV","DIC","Avance Acumulado",null,"OBSERVACIONES"]
[null,null,null,null,null,null,null,null,null,null,null,null,null,null,null,null,null,null,null,null,"Absoluto","Relativo (%)"]
[null,null,null,null,{"$f":"SUM(I397:T397)","v":0},0,0,"PROGRAMADO",null,null,null,null,null,null,null,null,null,null,null,null,{"$f":"SUM(I398:T398)","v":0},{"$f":"IF(ISERROR(U397/E397),0,U397/E397)","v":0},{"$f":"Y397","v":" "},null,{"$f":"IF(E397<F397,\"JUSTIFICAR BAJA\",\" \")","v":" "}]
[null,null,null,null,null,null,null,"REALIZADO"]
[null,null,null,null,null,null,null,"POBLACIÓN BENEFICIADA"]
["Programa:","02060806 Oportunidades para los jóvenes.- Contiene acciones que se orientan a brindar más y mejores oportunidades a los jóvenes que les permitan alcanzar su desarrollo físico – mental adecuado, que les permita incorporarse a la sociedad de manera productiva"]
["Subprograma:","0206080601 Promoción del bienestar y recreación juvenil"]
["Proyecto:","020608060102 Bienestar y orientación juvenil.- Engloba las acciones orientadas a atender las necesidades de desarrollo y bienestar de los jóvenes, así como la orientación con temas relacionados con la prevención de adicciones, acoso escolar (bullying); salud reproductiva y sexual."]
["CLAVE DIFEM","UNIDAD ADMVA. RESPONSABLE (MPAL.)"," METAS","UNIDAD DE MEDIDA","META ANUAL 2021","META ANUAL 2020","META ANUAL 2019","TIPOLOGÍA","ENE","FEB","MAR","ABR","MAY","JUN","JUL","AGO","SEP","OCT","NOV","DIC","Avance Acumulado",null,"OBSERVACIONES"]
[null,null,null,null,null,null,null,null,null,null,null,null,null,null,null,null,null,null,null,null,"Absoluto","Relativo (%)"]
[1,null,"OTORGAR EL SERVICIO EN LAS BIBLIOTECAS DE LOS SMDIF","vSvARIO\n(SvMA)",{"$f":"SUM(I405:T405)","v":0},0,0,"PROGRAMADO",null,null,null,null,null,null,null,null,null,null,null,null,{"$f":"SUM(I406:T406)","v":0},{"$f":"IF(ISERROR(U405/E405),0,U405/E405)","v":0},{"$f":"Y405","v":" "},null,{"$f":"IF(E405<F405,\"JUSTIFICAR BAJA\",\" \")","v":" "}]
[null,null,null,null,null,null,null,"REALIZADO"]
[null,null,null,null,null,null,null,"POBLACIÓN BENEFICIADA"]
[2,null,"ORGANIZAR E IMPARTIR TALLERES DE LECTURA EN LAS BIBLIOTECAS DE LOS SMDIF","CvRSO\n(SvMA)",{"$f":"SUM(I408:T408)","v":0},0,0,"PROGRAMADO",null,null,null,null,null,null,null,null,null,null,null,null,{"$f":"SUM(I409:T409)","v":0},{"$f":"IF(ISERROR(U408/E408),0,U408/E408)","v":0},{"$f":"Y408","v":" "},null,{"$f":"IF(E408<F408,\"JUSTIFICAR BAJA\",\" \")","v":" "}]
[null,null,null,null,null,null,null,"REALIZADO"]
[null,null,null,null,null,null,null,"POBLACIÓN BENEFICIADA"]
[3,null,"ORGANIZAR E IMPARTIR  CURSO DE VERANO EN LAS BIBLIOTECAS DE LOS SMDIF","CvRSO\n(SvMA)",{"$f":"SUM(I411:T411)","v":0},0,0,"PROGRAMADO",null,null,null,null,null,null,null,null,null,null,null,null,{"$f":"SUM(I412:T412)","v":0},{"$f":"IF(ISERROR(U411/E411),0,U411/E411)","v":0},{"$f":"Y411","v":" "},null,{"$f":"IF(E411<F411,\"JUSTIFICAR BAJA\",\" \")","v":" "}]
[null,null,null,null,null,null,null,"REALIZADO"]
[null,null,null,null,null,null,null,"POBLACIÓN BENEFICIADA"]
[4,"TRABAJO SOCIAL LIC. T.S. ENEDINA SALVADOR DEL RIO ","IMPARTIR EL CURSO TALLER PARA ADOLESCENTES EN POBLACIÓN CAUTIVA (ESCUELAS)","SESIÓN\n(SvMA)",{"$f":"SUM(I414:T414)","v":0},68,68,"PROGRAMADO",null,null,null,null,null,null,null,null,null,null,null,null,{"$f":"SUM(I415:T415)","v":0},{"$f":"IF(ISERROR(U414/E414),0,U414/E414)","v":0},{"$f":"Y414","v":"JUSTIFICAR BAJA"},null,{"$f":"IF(E414<F414,\"JUSTIFICAR BAJA\",\" \")","v":"JUSTIFICAR BAJA"}]
[null,null,null,null,null,null,null,"REALIZADO"]
[null,null,null,null,null,null,null,"POBLACIÓN BENEFICIADA"]
[5,"TRABAJO SOCIAL LIC. T.S. ENEDINA SALVADOR DEL RIO ","IMPARTIR EL CURSO TALLER PARA ADOLESCENTES EN POBLACIÓN ABIERTA.","SESIÓN\n(SvMA)",{"$f":"SUM(I417:T417)","v":0},13,12,"PROGRAMADO",null,null,null,null,null,null,null,null,null,null,null,null,{"$f":"SUM(I418:T418)","v":0},{"$f":"IF(ISERROR(U417/E417),0,U417/E417)","v":0},{"$f":"Y417","v":"JUSTIFICAR BAJA"},null,{"$f":"IF(E417<F417,\"JUSTIFICAR BAJA\",\" \")","v":"JUSTIFICAR BAJA"}]
[null,null,null,null,null,null,null,"REALIZADO"]
[null,null,null,null,null,null,null,"POBLACIÓN BENEFICIADA"]
[6,"TRABAJO SOCIAL LIC. T.S. ENEDINA SALVADOR DEL RIO ","IMPLEMENTAR ACTIVIDADES RECREATIVAS, DEPORTIVAS, CIVICAS, CULTURALES, BENEFICIO COLECTIVO Y CAPACITACIÓN PARA EL TRABAJO.","ACTIVIDAD\n(SvMA)",{"$f":"SUM(I420:T420)","v":0},1,1,"PROGRAMADO",null,null,null,null,null,null,null,null,null,null,null,null,{"$f":"SUM(I421:T421)","v":0},{"$f":"IF(ISERROR(U420/E420),0,U420/E420)","v":0},{"$f":"Y420","v":"JUSTIFICAR BAJA"},null,{"$f":"IF(E420<F420,\"JUSTIFICAR BAJA\",\" \")","v":"JUSTIFICAR BAJA"}]
[null,null,null,null,null,null,null,"REALIZADO"]
[null,null,null,null,null,null,null,"POBLACIÓN BENEFICIADA"]
["Proyecto:","020608060103 Promoción del desarrollo integral del adolescente.- Incorpora las actividades de promoción que permiten brindar más y mejores oportunidades a los jóvenes para alcanzar su pleno desarrollo en una forma integral, con el fin de que se incorporen a los diferentes ámbitos de la sociedad."]
["CLAVE DIFEM","UNIDAD ADMVA. RESPONSABLE (MPAL.)"," METAS","UNIDAD DE MEDIDA","META ANUAL 2021","META ANUAL 2020","META ANUAL 2019","TIPOLOGÍA","ENE","FEB","MAR","ABR","MAY","JUN","JUL","AGO","SEP","OCT","NOV","DIC","Avance Acumulado",null,"OBSERVACIONES"]
[null,null,null,null,null,null,null,null,null,null,null,null,null,null,null,null,null,null,null,null,"Absoluto","Relativo (%)"]
[1,"TRABAJO SOCIAL LIC. T.S. ENEDINA SALVADOR DEL RIO ","PROMOVER EL SERVICIO DE ORIENTACIÓN PSICOLÓGICA (SOS) ENTRE LA POBLACIÓN EN GENERAL.","PERSONA\n(SvMA)",{"$f":"SUM(I426:T426)","v":0},995,995,"PROGRAMADO",null,null,null,null,null,null,null,null,null,null,null,null,{"$f":"SUM(I427:T427)","v":0},{"$f":"IF(ISERROR(U426/E426),0,U426/E426)","v":0},{"$f":"Y426","v":"JUSTIFICAR BAJA"},"DPBF",{"$f":"IF(E426<F426,\"JUSTIFICAR BAJA\",\" \")","v":"JUSTIFICAR BAJA"}]
[null,null,null,null,null,null,null,"REALIZADO"]
[null,null,null,null,null,null,null,"POBLACIÓN BENEFICIADA"]
[2,"TRABAJO SOCIAL LIC. T.S. ENEDINA SALVADOR DEL RIO ","CONCIENTIZAR A PADRES DE FAMILA Y MAESTROS EN TORNO A LA PREVENCION DE CONDUCTAS DE RIESGO EN ADOLESCENTES Y JOVENES ","PLATICA\n(SvMA)",{"$f":"SUM(I429:T429)","v":0},12,12,"PROGRAMADO",null,null,null,null,null,null,null,null,null,null,null,null,{"$f":"SUM(I430:T430)","v":0},{"$f":"IF(ISERROR(U429/E429),0,U429/E429)","v":0},{"$f":"Y429","v":"JUSTIFICAR BAJA"},"DPBF",{"$f":"IF(E429<F429,\"JUSTIFICAR BAJA\",\" \")","v":"JUSTIFICAR BAJA"}]
[null,null,null,null,null,null,null,"REALIZADO"]
[null,null,null,null,null,null,null,"POBLACIÓN BENEFICIADA"]
[3,"TRABAJO SOCIAL LIC. T.S. ENEDINA SALVADOR DEL RIO ","IMPARTIR EL CURSO TALLER GUIA PARA PADRES Y ADOLESCENTES A PADRES DE FAMILIA Y MAESTROS.","SESIÓN\n(SvMA)",{"$f":"SUM(I432:T432)","v":0},12,12,"PROGRAMADO",null,null,null,null,null,null,null,null,null,null,null,null,{"$f":"SUM(I433:T433)","v":0},{"$f":"IF(ISERROR(U432/E432),0,U432/E432)","v":0},{"$f":"Y432","v":"JUSTIFICAR BAJA"},"DPBF",{"$f":"IF(E432<F432,\"JUSTIFICAR BAJA\",\" \")","v":"JUSTIFICAR BAJA"}]
[null,null,null,null,null,null,null,"REALIZADO"]
[null,null,null,null,null,null,null,"POBLACIÓN BENEFICIADA"]
[4,"TRABAJO SOCIAL LIC. T.S. ENEDINA SALVADOR DEL RIO ","CANALIZAR A ADOLESCENTES QUE ASI LO REQUIERAN A SERVICIOS MEDICOS, NUTRICIONALES, PSICOLOGICOS Y JURIDICOS.","ADOLESCENTE\n(SvMA)",{"$f":"SUM(I435:T435)","v":0},8,8,"PROGRAMADO",null,null,null,null,null,null,null,null,null,null,null,null,{"$f":"SUM(I436:T436)","v":0},{"$f":"IF(ISERROR(U435/E435),0,U435/E435)","v":0},{"$f":"Y435","v":"JUSTIFICAR BAJA"},"DPBF",{"$f":"IF(E435<F435,\"JUSTIFICAR BAJA\",\" \")","v":"JUSTIFICAR BAJA"}]
[null,null,null,null,null,null,null,"REALIZADO"]
[null,null,null,null,null,null,null,"POBLACIÓN BENEFICIADA"]
[5,"TRABAJO SOCIAL LIC. T.S. ENEDINA SALVADOR DEL RIO ","IMPARTIR PLATICAS OCASIONALES A ADOLESCENTES PARA PREVENIR CONDUCTAS DE RIEGO.","PLATICA\n(SvMA)",{"$f":"SUM(I438:T438)","v":0},5,5,"PROGRAMADO",null,null,null,null,null,null,null,null,null,null,null,null,{"$f":"SUM(I439:T439)","v":0},{"$f":"IF(ISERROR(U438/E438),0,U438/E438)","v":0},{"$f":"Y438","v":"JUSTIFICAR BAJA"},"DPBF",{"$f":"IF(E438<F438,\"JUSTIFICAR BAJA\",\" \")","v":"JUSTIFICAR BAJA"}]
[null,null,null,null,null,null,null,"REALIZADO"]
[null,null,null,null,null,null,null,"POBLACIÓN BENEFICIADA"]
["Proyecto:","020608060104 Atención integral para la reducción del embarazo adolescente.- Comprende las acciones enfocadas a difundir, asistir y prevenir el embarazo en los adolescentes en la sociedad, concientizándolos en la afectación del embarazo no deseado, por temas de salud, educación, proyecto de vida, relaciones sociales y culturales, así como en la economía."]
["CLAVE DIFEM","UNIDAD ADMVA. RESPONSABLE (MPAL.)"," METAS","UNIDAD DE MEDIDA","META ANUAL 2021","META ANUAL 2020","META ANUAL 2019","TIPOLOGÍA","ENE","FEB","MAR","ABR","MAY","JUN","JUL","AGO","SEP","OCT","NOV","DIC","Avance Acumulado",null,"OBSERVACIONES"]
[null,null,null,null,null,null,null,null,null,null,null,null,null,null,null,null,null,null,null,null,"Absoluto","Relativo (%)"]
[1,"TRABAJO SOCIAL LIC. T.S. ENEDINA SALVADOR DEL RIO ","REALIZAR JORNADAS DE PREVENCIÓN DEL EMBARAZO EN ADOLESCENTES","JORNADA\n(SvMA)",{"$f":"SUM(I444:T444)","v":0},4,0,"PROGRAMADO",null,null,null,null,null,null,null,null,null,null,null,null,{"$f":"SUM(I445:T445)","v":0},{"$f":"IF(ISERROR(U444/E444),0,U444/E444)","v":0},{"$f":"Y444","v":"JUSTIFICAR BAJA"},"DPBF",{"$f":"IF(E444<F444,\"JUSTIFICAR BAJA\",\" \")","v":"JUSTIFICAR BAJA"}]
[null,null,null,null,null,null,null,"REALIZADO"]
[null,null,null,null,null,null,null,"POBLACIÓN BENEFICIADA"]
[2,"TRABAJO SOCIAL LIC. T.S. ENEDINA SALVADOR DEL RIO ","IMPLEMENTAR LA ESTRATEGIA DE BEBÉS VIRTUALES ","ADOLESCENTE\n(SvMA)",{"$f":"SUM(I447:T447)","v":0},1,0,"PROGRAMADO",null,null,null,null,null,null,null,null,null,null,null,null,{"$f":"SUM(I448:T448)","v":0},{"$f":"IF(ISERROR(U447/E447),0,U447/E447)","v":0},{"$f":"Y447","v":"JUSTIFICAR BAJA"},"DPBF",{"$f":"IF(E447<F447,\"JUSTIFICAR BAJA\",\" \")","v":"JUSTIFICAR BAJA"}]
[null,null,null,null,null,null,null,"REALIZADO"]
[null,null,null,null,null,null,null,"POBLACIÓN BENEFICIADA"]
[3,"TRABAJO SOCIAL LIC. T.S. ENEDINA SALVADOR DEL RIO ","IMPLEMENTACIÓN DE TALLER \"PREVENCIÓN DEL EMBARAZO ADOLESCENTE\"","TALLER\n(SvMA)",{"$f":"SUM(I450:T450)","v":0},5,0,"PROGRAMADO",null,null,null,null,null,null,null,null,null,null,null,null,{"$f":"SUM(I451:T451)","v":0},{"$f":"IF(ISERROR(U450/E450),0,U450/E450)","v":0},{"$f":"Y450","v":"JUSTIFICAR BAJA"},"DPBF",{"$f":"IF(E450<F450,\"JUSTIFICAR BAJA\",\" \")","v":"JUSTIFICAR BAJA"}]
[null,null,null,null,null,null,null,"REALIZADO"]
[null,null,null,null,null,null,null,"POBLACIÓN BENEFICIADA"]
[4,"TRABAJO SOCIAL LIC. T.S. ENEDINA SALVADOR DEL RIO ","ACTIVIDADES CULTURALES ENFOCADAS EN LA PREVENCION DEL EMBARAZO  (FERIAS DE SALUD, DESFILES, FOROS, TORNEOS DEPORTIVOS)","ACTIVIDAD",{"$f":"SUM(I453:T453)","v":0},6,0,"PROGRAMADO",null,null,null,null,null,null,null,null,null,null,null,null,{"$f":"SUM(I454:T454)","v":0},{"$f":"IF(ISERROR(U453/E453),0,U453/E453)","v":0},{"$f":"Y453","v":"JUSTIFICAR BAJA"},"DPBF",{"$f":"IF(E453<F453,\"JUSTIFICAR BAJA\",\" \")","v":"JUSTIFICAR BAJA"}]
[null,null,null,null,null,null,null,"REALIZADO"]
[null,null,null,null,null,null,null,"POBLACIÓN BENEFICIADA"]
[5,"TRABAJO SOCIAL LIC. T.S. ENEDINA SALVADOR DEL RIO ","DIFUSIÓN MASIVA DE INFORMACIÓN PREVENTIVA SOBRE EL EMBARAZO EN LA ADOLESCENCIA (VÍA ELECTRÓNICA, MÓDULO INFORMATIVOS, INTERNET Y/O REDES SOCIALES, TELEVISIÓN, RADIO Y/O PERIFONEO Y FUNCIONES DE CINE)","PUBLICACIÓN",{"$f":"SUM(I456:T456)","v":0},3,0,"PROGRAMADO",null,null,null,null,null,null,null,null,null,null,null,null,{"$f":"SUM(I457:T457)","v":0},{"$f":"IF(ISERROR(U456/E456),0,U456/E456)","v":0},{"$f":"Y456","v":"JUSTIFICAR BAJA"},"DPBF",{"$f":"IF(E456<F456,\"JUSTIFICAR BAJA\",\" \")","v":"JUSTIFICAR BAJA"}]
[null,null,null,null,null,null,null,"REALIZADO"]
[null,null,null,null,null,null,null,"POBLACIÓN BENEFICIADA"]
["Proyecto:","020608060105 Atención integral a la madre adolescente.- Incluye las acciones orientadas a mejorar la salud de manera integral, (conjunta educación sexual, salud reproductiva y servicios asistenciales), incluye capacitación en y para el trabajo, así como opciones educativas, para coadyuvar a mejorar las oportunidades de desarrollo de las madres adolescentes."]
["CLAVE DIFEM","UNIDAD ADMVA. RESPONSABLE (MPAL.)"," METAS","UNIDAD DE MEDIDA","META ANUAL 2021","META ANUAL 2020","META ANUAL 2019","TIPOLOGÍA","ENE","FEB","MAR","ABR","MAY","JUN","JUL","AGO","SEP","OCT","NOV","DIC","Avance Acumulado",null,"OBSERVACIONES"]
[null,null,null,null,null,null,null,null,null,null,null,null,null,null,null,null,null,null,null,null,"Absoluto","Relativo (%)"]
[1,"TRABAJO SOCIAL LIC. T.S. ENEDINA SALVADOR DEL RIO ","IMPARTIR EL CURSO TALLER PARA LA ATENCIÓN DE ADOLESCENTES EMBARAZADAS Y MADRES ADOLESCENTES ","SESIÓN\n(SvMA)",{"$f":"SUM(I462:T462)","v":0},32,32,"PROGRAMADO",null,null,null,null,null,null,null,null,null,null,null,null,{"$f":"SUM(I463:T463)","v":0},{"$f":"IF(ISERROR(U462/E462),0,U462/E462)","v":0},{"$f":"Y462","v":"JUSTIFICAR BAJA"},"DPBF",{"$f":"IF(E462<F462,\"JUSTIFICAR BAJA\",\" \")","v":"JUSTIFICAR BAJA"}]
[null,null,null,null,null,null,null,"REALIZADO"]
[null,null,null,null,null,null,null,"POBLACIÓN BENEFICIADA"]
[2,"TRABAJO SOCIAL LIC. T.S. ENEDINA SALVADOR DEL RIO ","BRINDAR ATENCIÓN MÉDICA INTEGRAL A ADOLESCENTES EMBARAZADAS Y MADRES ADOLESCENTES, DE 12 A 19 AÑOS (MEDICINA GENERAL, PSICOLOGÍA, NUTRICIONAL, JURÍDICA, REGISTRO CIVIL).","MvJER ADOLESCENTE\n(SvMA)",{"$f":"SUM(I465:T465)","v":0},11,11,"PROGRAMADO",null,null,null,null,null,null,null,null,null,null,null,null,{"$f":"SUM(I466:T466)","v":0},{"$f":"IF(ISERROR(U465/E465),0,U465/E465)","v":0},{"$f":"Y465","v":"JUSTIFICAR BAJA"},"DPBF",{"$f":"IF(E465<F465,\"JUSTIFICAR BAJA\",\" \")","v":"JUSTIFICAR BAJA"},1]
[null,null,null,null,null,null,null,"REALIZADO"]
[null,null,null,null,null,null,null,"POBLACIÓN BENEFICIADA"]
[3,"TRABAJO SOCIAL LIC. T.S. ENEDINA SALVADOR DEL RIO ","SENSIBILIZAR A LA PAREJA, FAMILIARES Y ACOMPAÑANTES DE LAS ADOLESCENTES EMBARAZADAS Y MADRES ADOLESCENTES, SOBRE ESTA PROBLEMÁTICA.","PERSONA\n(SvMA)",{"$f":"SUM(I468:T468)","v":0},11,11,"PROGRAMADO",null,null,null,null,null,null,null,null,null,null,null,null,{"$f":"SUM(I469:T469)","v":0},{"$f":"IF(ISERROR(U468/E468),0,U468/E468)","v":0},{"$f":"Y468","v":"JUSTIFICAR BAJA"},"DPBF",{"$f":"IF(E468<F468,\"JUSTIFICAR BAJA\",\" \")","v":"JUSTIFICAR BAJA"}]
[null,null,null,null,null,null,null,"REALIZADO"]
[null,null,null,null,null,null,null,"POBLACIÓN BENEFICIADA"]
[4,"TRABAJO SOCIAL LIC. T.S. ENEDINA SALVADOR DEL RIO ","IMPARTIR TALLERES LABORALES QUE CAPACITEN PARA EL AUTOCONSUMO Y EL AUTOEMPLEO A MADRES ADOLESCENTES","TALLER\n(SvMA)",{"$f":"SUM(I471:T471)","v":0},4,3,"PROGRAMADO",null,null,null,null,null,null,null,null,null,null,null,null,{"$f":"SUM(I472:T472)","v":0},{"$f":"IF(ISERROR(U471/E471),0,U471/E471)","v":0},{"$f":"Y471","v":"JUSTIFICAR BAJA"},"DPBF",{"$f":"IF(E471<F471,\"JUSTIFICAR BAJA\",\" \")","v":"JUSTIFICAR BAJA"}]
[null,null,null,null,null,null,null,"REALIZADO"]
[null,null,null,null,null,null,null,"POBLACIÓN BENEFICIADA"]
[5,"TRABAJO SOCIAL LIC. T.S. ENEDINA SALVADOR DEL RIO "," IMPLEMENTACIÓN DEL TALLER \"PRENATAL Y POSTNATAL PARA ADOLESCENTES\"","TALLER\n(SvMA)",{"$f":"SUM(I474:T474)","v":0},32,32,"PROGRAMADO",null,null,null,null,null,null,null,null,null,null,null,null,{"$f":"SUM(I475:T475)","v":0},{"$f":"IF(ISERROR(U474/E474),0,U474/E474)","v":0},{"$f":"Y474","v":"JUSTIFICAR BAJA"},"DPBF",{"$f":"IF(E474<F474,\"JUSTIFICAR BAJA\",\" \")","v":"JUSTIFICAR BAJA"}]
[null,null,null,null,null,null,null,"REALIZADO"]
[null,null,null,null,null,null,null,"POBLACIÓN BENEFICIADA"]
[6,"TRABAJO SOCIAL LIC. T.S. ENEDINA SALVADOR DEL RIO ","DETECTAR A MADRES ADOLESCENTES DE 12 A 19 AÑOS REINCIDENTES DE EMBARAZO","MvJER ADOLESCENTE\n(SvMA)",{"$f":"SUM(I477:T477)","v":0},6,6,"PROGRAMADO",null,null,null,null,null,null,null,null,null,null,null,null,{"$f":"SUM(I478:T478)","v":0},{"$f":"IF(ISERROR(U477/E477),0,U477/E477)","v":0},{"$f":"Y477","v":"JUSTIFICAR BAJA"},"DPBF",{"$f":"IF(E477<F477,\"JUSTIFICAR BAJA\",\" \")","v":"JUSTIFICAR BAJA"}]
[null,null,null,null,null,null,null,"REALIZADO"]
[null,null,null,null,null,null,null,"POBLACIÓN BENEFICIADA"]
["Subprograma:","0206080602 Asistencia social y servicios comunitarios para la juventud"]
["Proyecto:","020608060201 Expresión juvenil.- Comprende las acciones dirigidas a los jóvenes con la finalidad de reconocer su talento creando espacios de participación y expresión social, cultural y política."]
["CLAVE DIFEM","UNIDAD ADMVA. RESPONSABLE (MPAL.)"," METAS","UNIDAD DE MEDIDA","META ANUAL 2021","META ANUAL 2020","META ANUAL 2019","TIPOLOGÍA","ENE","FEB","MAR","ABR","MAY","JUN","JUL","AGO","SEP","OCT","NOV","DIC","Avance Acumulado",null,"OBSERVACIONES"]
[null,null,null,null,null,null,null,null,null,null,null,null,null,null,null,null,null,null,null,null,"Absoluto","Relativo (%)"]
[null,null,null,null,{"$f":"SUM(I484:T484)","v":0},0,0,"PROGRAMADO",null,null,null,null,null,null,null,null,null,null,null,null,{"$f":"SUM(I485:T485)","v":0},{"$f":"IF(ISERROR(U484/E484),0,U484/E484)","v":0},{"$f":"Y484","v":" "},null,{"$f":"IF(E484<F484,\"JUSTIFICAR BAJA\",\" \")","v":" "}]
[null,null,null,null,null,null,null,"REALIZADO"]
[null,null,null,null,null,null,null,"POBLACIÓN BENEFICIADA"]
["Proyecto:","020608060202 Asistencia social a la juventud.- Contempla las acciones encaminadas a disminuir los rezagos más apremiantes para la juventud y su comunidad mediante la realización de brigadas de trabajo comunitario que atienda a sus necesidades y asimismo permita su inclusión y participación en la aportación de sus conocimientos y habilidades la solución a problemas locales."]
["CLAVE DIFEM","UNIDAD ADMVA. RESPONSABLE (MPAL.)"," METAS","UNIDAD DE MEDIDA","META ANUAL 2021","META ANUAL 2020","META ANUAL 2019","TIPOLOGÍA","ENE","FEB","MAR","ABR","MAY","JUN","JUL","AGO","SEP","OCT","NOV","DIC","Avance Acumulado",null,"OBSERVACIONES"]
[null,null,null,null,null,null,null,null,null,null,null,null,null,null,null,null,null,null,null,null,"Absoluto","Relativo (%)"]
[null,null,null,null,{"$f":"SUM(I490:T490)","v":0},0,0,"PROGRAMADO",null,null,null,null,null,null,null,null,null,null,null,null,{"$f":"SUM(I491:T491)","v":0},{"$f":"IF(ISERROR(U490/E490),0,U490/E490)","v":0},{"$f":"Y490","v":" "},"DPBF",{"$f":"IF(E490<F490,\"JUSTIFICAR BAJA\",\" \")","v":" "}]
[null,null,null,null,null,null,null,"REALIZADO"]
[null,null,null,null,null,null,null,"POBLACIÓN BENEFICIADA"]
["Función:","0207 Otros asuntos sociales"]
["Subfunción:","020701 Otros asuntos sociales"]
[]
[]
[]
[]
[]
[]
[null,"AAAAAA",null,null,null,null,null,"AAAAAA",null,null,null,null,null,null,"AAAAAA"]
[null,"ELABORO",null,null,null,null,null,"REVISO",null,null,null,null,null,null,"Vo. Bo."]
[]
[null,"BBBB",null,null,null,null,null,"BBBBB",null,null,null,null,null,null,"BBBB"]

{"sheet":"Desayunos","index":1,"n_rows":32,"n_cols":22,"rows_kept":32,"cut":false,"hidden":false,"merged":[[15,5,16,5],[15,6,16,6],[3,1,3,2],[3,16,3,17],[8,0,8,2],[8,7,8,9],[8,10,8,12],[8,13,8,15],[15,0,16,0],[15,1,16,1],[15,2,16,2],[15,3,16,3],[15,4,16,4],[15,8,16,8],[15,9,16,9],[15,10,16,10],[17,20,19,20],[15,13,16,13],[15,14,16,14],[15,15,16,15],[15,16,16,16],[15,17,16,17],[15,18,15,19],[17,2,19,2],[17,3,19,3],[17,4,19,4],[17,18,19,18],[17,19,19,19],[15,7,16,7],[17,21,19,21],[20,0,22,0],[20,1,22,1],[20,2,22,2],[20,3,22,3],[20,4,22,4],[20,18,22,18],[20,19,22,19],[20,20,22,20],[20,21,22,21],[15,11,16,11],[15,12,16,12],[15,20,16,20],[17,0,19,0],[17,1,19,1],[29,0,31,0],[29,1,31,1],[29,2,31,2],[29,3,31,3],[29,4,31,4],[23,0,25,0],[23,1,25,1],[23,2,25,2],[23,3,25,3],[23,4,25,4],[26,0,28,0],[26,1,28,1],[26,2,28,2],[26,3,28,3],[26,4,28,4],[29,18,31,18],[29,19,31,19],[29,20,31,20],[29,21,31,21],[23,19,25,19],[23,20,25,20],[23,21,25,21],[26,18,28,18],[26,19,28,19],[23,18,25,18],[26,20,28,20],[26,21,28,21]]}
[]
["SISTEMA PARA EL DESARROLLO INTEGRAL DE LA FAMILIA DEL ESTADO DE MÉXICO",null,null,null,null,null,null,null,null,null,null,null,null,null,null,null,null,null,null,null,null,2]
["PROGRAMA OPERATIVO ANUAL MUNICIPAL DE SALUD, SEGURIDAD Y ASISTENCIA SOCIAL (POA) 2021",null,null,null,null,null,null,null,null,null,null,null,null,null,null,null,null,null,null,null,null,126]
["SMDIF:","TEMOAYA"]
["REGIÓN"]
["AÑO:",2021]
["MES:"]
[]
["ESTRUCTURA PROGRAMATICA 2021"]
["Fin:","02 Desarrollo Social"]
["Función:","0205 Educación"]
["Subfunción:","020506 Otros servicios educativos y actividades inherentes"]
["Programa:","02050603 Alimentación para la población infantil .- Engloba las acciones encaminadas a disminuir la desnutrición, el sobrepeso y la obesidad en la población preescolar en zonas indígenas, rurales y urbano marginadas del territorio estatal."]
["Subprograma:","0205060301 Asistencia alimentaria a menores"]
["Proyecto:","020506030101  Desayunos escolares.-Incluye acciones de los Sistemas Municipales DIF enfocadas a la mejora del estado de nutrición de los niños en edad preescolar y escolar que sean diagnosticados con desnutrición o en riesgo, a través de la entrega de desayunos escolares fríos o raciones vespertinas en planteles escolares públicos, ubicados principalmente en zonas indígenas, rurales y urbano marginadas del territorio Estatal."]
["CLAVE DIFEM","UNIDAD ADMVA. RESPONSABLE (MPAL.)"," METAS","UNIDAD DE MEDIDA","META ANUAL 2021","TIPOLOGÍA","ENE","FEB","MAR","ABR","MAY","JUN","JUL","AGO","SEP","OCT","NOV","DIC","Avance Acumulado",null,"OBSERVACIONES"]
[null,null,null,null,null,null,null,null,null,null,null,null,null,null,null,null,null,null,"Absoluto","Relativo (%)"]
[1,"CLAUDIA ","DISTRIBUIR DESAYUNOS ESCOLARES FRÍOS A LAS ESCUELAS BENEFICIADAS","DESAYvNO\n(SvMA)",{"$f":"SUM(G18:R18)","v":1458440},"PROGRAMADO",115140,138168,138168,107464,145844,153520,53732,46056,161196,161196,138168,99788,{"$f":"SUM(G19:R19)","v":998501},{"$f":"IF(ISERROR(S18/E18),0,S18/E18)","v":0.68463632374317762},null,"DANF"]
[null,null,null,null,null,"REALIZADO",115140,138168,138168,102382,138947,146260,51191,14630,153615]
[null,null,null,null,null,"POBLACIÓN BENEFICIADA",7676,7676,7676,7313,7313,7313,7313,7315,7315]
[2,"CLAUDIA ","DISTRIBUIR RACIONES VESPERTINAS A LAS ESCUELAS BENEFICIADAS","RACIÓN \n(SvMA)",{"$f":"SUM(G21:R21)","v":58140},"PROGRAMADO",4590,5508,5508,4284,5814,6120,2142,1836,6426,6426,5508,3978,{"$f":"SUM(G22:R22)","v":39962},{"$f":"IF(ISERROR(S21/E21),0,S21/E21)","v":0.68734090127278979},null,"DANF"]
[null,null,null,null,null,"REALIZADO",4590,5508,5508,4116,5586,5880,2058,584,6132]
[null,null,null,null,null,"POBLACIÓN BENEFICIADA",306,306,306,294,294,294,294,292,292]
[3,"CLAUDIA ","CAPACITAR A PADRES DE FAMILIA Y MAESTROS DE LOS BENEFICIADOS CON DESAYUNOS EN LAS 3 MODALIDADES, SOBRE LAS REGLAS DE OPERACIÓN","PLÁTICA \n(SvMA)",{"$f":"SUM(G24:R24)","v":24},"PROGRAMADO",2,2,2,2,2,2,2,2,2,2,2,2,{"$f":"SUM(G25:R25)","v":0},{"$f":"IF(ISERROR(S24/E24),0,S24/E24)","v":0},null,"DANF"]
[null,null,null,null,null,"REALIZADO",0,0,0,0,0,0,0,0,0]
[null,null,null,null,null,"POBLACIÓN BENEFICIADA",0,0,0,0,0,0,0,0,0]
[4,"CLAUDIA ","REALIZAR EL LEVANTAMIENTO DE PESO Y TALLA PARA LA CONFORMACIÓN DEL PADRÓN DE BENEFICIARIOS AL INICIO (DEF, RV, DEC) Y FINAL (DEC) DEL CICLO ESCOLAR VIGENTE, EN COORDINACION CON EL DIFEM ","TOMA DE PESO Y ESTATvRA \n(SvMA)",{"$f":"SUM(G27:R27)","v":1},"PROGRAMADO",0,0,0,0,0,0,0,0,1,0,0,0,{"$f":"SUM(G28:R28)","v":0},{"$f":"IF(ISERROR(S27/E27),0,S27/E27)","v":0},null,"DANF"]
[null,null,null,null,null,"REALIZADO",0,0,0,0,0,0,0,0,0]
[null,null,null,null,null,"POBLACIÓN BENEFICIADA",0,0,0,0,0,0,0,0,0]
[5,"CLAUDIA ","SUPERVISAR LOS PLANTELES ESCOLARES BENEFICIADOS CON  DESAYUNOS FRÍOS Y RACIONES VESPERTINAS A TRAVÉS DE VISITAS PERIÓDICAS  VERIFICANDO EL CUMPLIMIENTO DE LAS REGLAS DE OPERACIÓN","INSPECCION \n(SvMA)",{"$f":"SUM(G30:R30)","v":1900},"PROGRAMADO",150,180,180,140,190,200,70,60,210,210,180,130,{"$f":"SUM(G31:R31)","v":0},{"$f":"IF(ISERROR(S30/E30),0,S30/E30)","v":0},null,"DANF"]
[null,null,null,null,null,"REALIZADO",0,0,0,0,0,0,0,0,0]
[null,null,null,null,null,"POBLACIÓN BENEFICIADA",0,0,0,0,0,0,0,0,0]